{"text_format":"1","workbook":"xlsx","n_sheets":1,"sheets":["戸建・併用住宅用"],"not_rendered":{"charts":0,"images":1,"macros":1,"external_links":0,"defined_names":4,"comments":0,"pivot_tables":0},"unopened":[],"bounds":{"document_bytes":16777216,"sheet_cells":100000,"rows_first":2000,"rows_last":500,"rows_between":2000,"halvings":0,"cell_chars":16384,"cell_head_chars":4096},"cells_cut":0,"cells_raw":0,"read":"whole","date_system":"1900"}

{"sheet":"戸建・併用住宅用","index":0,"n_rows":506,"n_cols":33,"rows_kept":506,"cut":false,"hidden":false,"merged":[[164,32,165,32],[164,33,165,33],[164,34,165,34],[166,32,167,32],[166,33,167,33],[166,34,167,34],[128,15,128,18],[128,19,128,20],[129,15,129,18],[129,19,129,20],[158,32,159,32],[158,33,159,33],[158,34,159,34],[160,32,161,32],[160,33,161,33],[160,34,161,34],[162,32,163,32],[162,33,163,33],[162,34,163,34],[158,30,159,30],[160,30,161,30],[162,30,163,30],[164,30,165,30],[166,30,167,30],[158,31,159,31],[160,31,161,31],[162,31,163,31],[164,31,165,31],[166,31,167,31],[15,19,16,20],[21,19,22,19],[46,10,46,11],[66,1,69,1],[66,6,69,6],[68,7,69,7],[68,8,69,8],[68,9,69,9],[68,10,69,10],[68,11,69,11],[66,2,66,5],[27,1,27,3],[27,4,27,5],[34,7,37,7],[37,1,37,4],[29,7,29,8],[35,1,35,3],[30,1,30,3],[34,9,37,9],[21,21,23,21],[24,16,24,21],[3,4,3,6],[5,7,5,8],[9,2,9,6],[14,4,14,6],[15,2,15,6],[10,7,10,8],[6,7,6,8],[6,9,6,11],[11,9,11,11],[12,7,12,8],[12,9,12,11],[11,2,11,6],[12,2,12,6],[21,2,22,3],[21,4,21,6],[9,7,9,8],[9,9,9,11],[21,16,23,16],[15,21,16,21],[5,9,5,10],[20,7,20,8],[23,7,23,8],[30,4,30,5],[33,1,33,3],[34,5,37,5],[34,6,37,6],[28,4,28,5],[34,8,37,8],[10,9,10,11],[15,15,16,18],[18,9,18,11],[23,11,24,11],[21,9,22,9],[23,9,24,9],[16,9,16,10],[21,7,21,8],[22,7,22,8],[16,4,17,6],[29,1,29,3],[17,7,17,8],[18,7,18,8],[29,9,29,10],[34,10,37,10],[33,5,33,10],[29,4,29,5],[30,9,30,11],[67,2,67,3],[61,11,62,11],[99,10,99,11],[67,4,67,5],[68,4,68,5],[69,4,69,5],[66,7,67,7],[44,7,45,7],[54,6,55,7],[54,8,55,10],[44,1,44,3],[56,8,59,8],[54,1,54,3],[55,1,55,3],[50,4,51,4],[48,4,49,4],[44,11,45,11],[48,5,49,5],[47,4,47,10],[49,7,51,7],[49,8,51,8],[56,7,59,7],[56,6,59,6],[126,16,126,18],[126,19,126,20],[118,16,118,21],[127,15,127,18],[127,19,127,20],[115,15,120,15],[124,19,124,20],[124,15,124,18],[123,15,123,18],[123,19,123,20],[125,16,125,18],[125,19,125,20],[118,24,118,25],[119,16,119,23],[120,16,120,23],[115,16,115,18],[116,16,117,18],[116,19,116,20],[116,22,116,23],[108,23,108,24],[110,23,110,24],[116,24,116,25],[117,19,117,20],[117,22,117,23],[108,18,108,22],[109,23,109,24],[109,18,109,22],[117,24,117,25],[110,18,110,22],[118,22,118,23],[108,15,111,17],[111,18,111,22],[111,23,111,24],[38,1,38,3],[40,1,40,3],[41,1,41,3],[43,1,43,3],[40,10,41,11],[42,11,43,11],[44,5,45,5],[42,1,42,3],[45,1,45,3],[44,8,45,8],[44,10,45,10],[38,4,38,11],[42,4,43,4],[42,5,43,5],[40,4,41,5],[44,4,45,4],[40,7,41,8],[42,7,43,7],[105,25,107,25],[106,18,106,22],[107,18,107,22],[105,15,107,17],[105,18,105,22],[105,23,105,24],[106,23,106,24],[107,23,107,24],[104,15,104,25],[30,6,30,8],[33,30,36,30],[33,29,36,29],[33,27,36,27],[33,28,36,28],[4,4,4,6],[5,1,5,3],[5,4,5,5],[4,1,4,3],[4,7,4,8],[20,17,20,18],[19,15,20,15],[19,16,19,18],[21,17,23,18],[7,9,7,11],[8,7,8,8],[8,9,8,11],[8,2,8,6],[7,20,8,21],[24,4,24,6],[28,10,28,11],[19,19,19,21],[4,9,4,11],[6,2,6,6],[28,1,28,3],[3,1,3,3],[23,2,24,3],[23,4,23,6],[6,1,15,1],[7,2,7,6],[11,7,11,8],[7,7,7,8],[16,1,17,1],[13,4,13,6],[24,7,24,8],[13,2,13,3],[14,2,14,3],[18,1,24,1],[14,7,14,8],[16,2,17,3],[10,2,10,6],[22,4,22,6],[13,7,13,8],[18,2,20,3],[18,4,18,6],[19,4,19,6],[20,4,20,6],[16,7,16,8],[15,7,15,8],[46,1,46,3],[47,1,47,3],[42,10,43,10],[42,8,43,8],[49,6,51,6],[68,2,68,3],[69,2,69,3],[13,9,15,11],[17,9,17,10],[19,7,19,8],[49,1,49,3],[61,1,64,1],[53,4,53,10],[49,9,51,9],[50,5,51,5],[61,2,62,2],[53,1,53,3],[54,4,55,5],[61,3,61,5],[61,6,61,10],[51,1,51,3],[49,10,51,10],[56,4,59,5]]}
[null,"■　【BELS】 住宅用一次エネルギー消費量計算書 （BELS設計内容説明書に添付する計算書）",null,null,null,null,null,null,null,null,null,"Ver. 13.1",null,null,"株式会社西日本住宅評価センター"]
[]
[null,"1. 一次エネルギー消費量・断熱性能",null,null,null,null,null,null,null,null,null,{"$f":"E156","v":""},null,null," 【本計算書の使用方法と注意事項】"]
[null,"住宅タイプの名称",null,null,{"$f":"IF(ISERROR(IF(RIGHT(E105,3)=\"住宅)\",LEFT(E105,LEN(E105)-7),LEFT(E105,LEN(E105)-8))),\"\",IF(RIGHT(E105,3)=\"住宅)\",LEFT(E105,LEN(E105)-7),LEFT(E105,LEN(E105)-8)))","v":""},null,null,"建て方",{"$f":"IF(ISERROR(IF(RIGHT(E105,3)=\"住宅)\",MID(E105,(LEN(E105)-4),4),MID(E105,(LEN(E105)-5),4))),\"\",IF(RIGHT(E105,3)=\"住宅)\",MID(E105,(LEN(E105)-4),4),MID(E105,(LEN(E105)-5),4)))","v":""},"地域の区分",{"$f":"IF(ISERROR(-LOOKUP(1,-LEFT(MID(SUBSTITUTE(D107,\"区分\",\"*\",2),FIND(\"*\",SUBSTITUTE(D107,\"区分\",\"*\",2))+1,3),ROW($1:$16)))),\"\",-LOOKUP(1,-LEFT(MID(SUBSTITUTE(D107,\"区分\",\"*\",2),FIND(\"*\",SUBSTITUTE(D107,\"区分\",\"*\",2))+1,3),ROW($1:$16))))","v":""},"地域",null,null," ①　本計算書を添付することで、BELS設計内容説明書 第二面の数値等の記入を省略することができます。"]
[null,"断熱性能評価手法",null,null,{"$f":"IF(AND(OR(K4<>\"\",E4<>\"\"),D156=\"\"),S139,IF(MID(D134,14,13)=\"当該住戸の外皮面積を用いて\",T135,IF(MID(D134,14,4)=\"仕様基準\",T136,IF(MID(D134,14,6)=\"誘導仕様基準\",T137,\"\"))))","v":""},null,null,"一次エネルギー評価手法",null,{"$f":"IF(AND(OR(K4<>\"\",E4<>\"\"),D156=\"\"),S139,IF(J100<>\"\",S135,\"\"))","v":""},null,null,null,null," ②　本計算書を再利用すると計算式が削除されている可能性があるため、常に新しい計算書をご使用ください。"]
[null,"計算対象床面積（合計）",null,null,{"$f":"IF(ISERROR(-LOOKUP(1,-RIGHT(LEFT(D106,LEN(D106)-1),ROW($1:$16)))),\"\",-LOOKUP(1,-RIGHT(LEFT(D106,LEN(D106)-1),ROW($1:$16))))","v":""},null,"㎡","非住宅の評価対象床面積",null,{"$f":"IF(I4=\"\",\"\",IF(I4=\"戸建住宅\",0,IF(T16=\"\",0,T16)))","v":""},null,"㎡"]
[null,"一次エネルギー消費量","内　訳",null,null,null,null,"設計一次 [MJ]",null,"基準一次 [MJ]",null,null,null,null," 【本計算書の作成方法】"]
[null,null,"暖房設備",null,null,null,null,{"$f":"IF(ISERROR(-LOOKUP(1,-LEFT(MID(D108,5,15),ROW($1:$16)))),\"\",-LOOKUP(1,-LEFT(MID(D108,5,15),ROW($1:$16))))","v":""},null,{"$f":"IF(ISERROR(-LOOKUP(1,-RIGHT(D108,ROW($1:$16)))),\"\",-LOOKUP(1,-RIGHT(D108,ROW($1:$16))))","v":""},null,null,null,null," ①　右のボタンで一次エネルギー消費量計算結果のPDFを読み込む。",null,null,null,null,null,"ＰＤＦ読込"]
[null,null,"冷房設備",null,null,null,null,{"$f":"IF(ISERROR(-LOOKUP(1,-LEFT(MID(D109,5,15),ROW($1:$16)))),\"\",-LOOKUP(1,-LEFT(MID(D109,5,15),ROW($1:$16))))","v":""},null,{"$f":"IF(ISERROR(-LOOKUP(1,-RIGHT(D109,ROW($1:$16)))),\"\",-LOOKUP(1,-RIGHT(D109,ROW($1:$16))))","v":""},null,null,null,null,"　　　※ 住宅名称、太陽光の合計容量等に相違があれば修正してください。"]
[null,null,"換気設備",null,null,null,null,{"$f":"IF(ISERROR(-LOOKUP(1,-LEFT(MID(D110,5,15),ROW($1:$16)))),\"\",-LOOKUP(1,-LEFT(MID(D110,5,15),ROW($1:$16))))","v":""},null,{"$f":"IF(ISERROR(-LOOKUP(1,-RIGHT(D110,ROW($1:$16)))),\"\",-LOOKUP(1,-RIGHT(D110,ROW($1:$16))))","v":""},null,null,null,null,"　　　※ PDFの読込ができないときは、PDFを全選択・コピーして【Ｊ100】セルに"]
[null,null,"給湯設備",null,null,null,null,{"$f":"IF(ISERROR(-LOOKUP(1,-LEFT(MID(D111,5,15),ROW($1:$16)))),\"\",-LOOKUP(1,-LEFT(MID(D111,5,15),ROW($1:$16))))","v":""},null,{"$f":"IF(ISERROR(-LOOKUP(1,-RIGHT(D111,ROW($1:$16)))),\"\",-LOOKUP(1,-RIGHT(D111,ROW($1:$16))))","v":""},null,null,null,null,"　　　　  ペーストするか、左表の黄色セルに計算結果データを入力してください。"]
[null,null,"照明設備",null,null,null,null,{"$f":"IF(ISERROR(-LOOKUP(1,-LEFT(MID(D112,5,15),ROW($1:$16)))),\"\",-LOOKUP(1,-LEFT(MID(D112,5,15),ROW($1:$16))))","v":""},null,{"$f":"IF(ISERROR(-LOOKUP(1,-RIGHT(D112,ROW($1:$16)))),\"\",-LOOKUP(1,-RIGHT(D112,ROW($1:$16))))","v":""},null,null,null,null,"　　　※ PDFの読込を取り消したいときは【Ｊ100】セルを消去してください。"]
[null,null,"その他の設備",null,null,null,null,{"$f":"IF(ISERROR(-LOOKUP(1,-LEFT(MID(D113,7,15),ROW($1:$16)))),\"\",-LOOKUP(1,-LEFT(MID(D113,7,15),ROW($1:$16))))","v":""},null,{"$f":"IF(ISBLANK(H13),\"\",H13)","v":""}]
[null,null,"発電設備の発電量",null,"太陽光発電（PV）",null,null,{"$f":"IF(ISERROR(LOOKUP(10^17,1*RIGHT(LEFT(D114,LEN(D114)-3),ROW($1:$16)))),\"\",IF(RIGHT(LEFT(D114,LEN(D114)-3),3)=\"---\",\"\",LOOKUP(10^17,1*RIGHT(LEFT(D114,LEN(D114)-3),ROW($1:$16)))))","v":""},null,"発電設備が無い場合は\n０を記入、又は空欄とする",null,null,null,null," ②　併用住宅で非住宅部分と太陽光発電設備を共有している場合、非住宅の床面積を入力してください。"]
[null,null,"のうち自家消費分",null,"コージェネレーション設備（CGS）",null,null,{"$f":"IF(ISERROR(LOOKUP(10^17,1*RIGHT(LEFT(D115,LEN(D115)-3),ROW($1:$16)))),\"\",IF(RIGHT(LEFT(D115,LEN(D115)-3),3)=\"---\",\"\",LOOKUP(10^17,1*RIGHT(LEFT(D115,LEN(D115)-3),ROW($1:$16)))))","v":""},null,null,null,null,null,null,"　　　（ZEH等の適合判断では、総発電量を床面積按分した値を太陽光のエネルギー消費削減分の上限とします）"]
[null,null,"コージェネレーション設備の売電量に係る控除量",null,null,null,null,{"$f":"IF(ISERROR(LOOKUP(10^17,1*RIGHT(LEFT(D116,LEN(D116)-3),ROW($1:$16)))),\"\",IF(RIGHT(LEFT(D116,LEN(D116)-3),3)=\"---\",\"\",LOOKUP(10^17,1*RIGHT(LEFT(D116,LEN(D116)-3),ROW($1:$16)))))","v":""},null,null,null,null,null,null,null,"太陽光発電設備を共有する非住宅の評価対象床面積",null,null,null,null,null,"㎡"]
[null,"ＢＥＩ","建築物エネルギー\n消費性能基準",null,"一次エネルギー消費量（その他除く）",null,null,"設計一次[GJ/(戸･年)]",null,"基準一次[GJ/(戸･年)]",null,"BEI"]
[null,null,null,null,null,null,null,{"$f":"IF(SUM(AB180)=0,\"\",SUM(AB180))","v":""},null,{"$f":"IF(SUM(AB179)=0,\"\",SUM(AB179))","v":""},null,{"$f":"IF(SUM(AB181)=0,\"\",SUM(AB181))","v":""}]
[null,"参考値","設計二次エネルギー消費量",null,"消費電力量　　  [kWh]",null,null,{"$f":"IF(ISERROR(-LOOKUP(1,-LEFT(E146,ROW($1:$16)))),\"\",-LOOKUP(1,-LEFT(E146,ROW($1:$16))))","v":""},null,"断熱性能",null,null,null,null," ③　「2. BELS評価申請項目」を入力、確認する。下の選択肢、又は左の表で直接入力してください。"]
[null,null,null,null,"ガス消費量 　　 [MJ]",null,null,{"$f":"IF(ISERROR(-LOOKUP(1,-LEFT(E147,ROW($1:$16)))),\"\",-LOOKUP(1,-LEFT(E147,ROW($1:$16))))","v":""},null,null,"ＵＡ","ηＡＣ",null,null,null,"選択","再エネ設備",null,null,"目安光熱費"]
[null,null,null,null,"灯油消費量 　　 [MJ]",null,null,{"$f":"IF(ISERROR(-LOOKUP(1,-LEFT(E148,ROW($1:$16)))),\"\",-LOOKUP(1,-LEFT(E148,ROW($1:$16))))","v":""},null,"設計値",{"$f":"IF(ISERROR(-LOOKUP(1,-RIGHT(LEFT(E135,LEN(E135)-5),ROW($1:$16)))),\"\",-LOOKUP(1,-RIGHT(LEFT(E135,LEN(E135)-5),ROW($1:$16))))","v":""},{"$f":"IF(ISERROR(-LOOKUP(1,-LEFT(E136,ROW($1:$16)))),\"\",-LOOKUP(1,-LEFT(E136,ROW($1:$16))))","v":""},null,null,null,null,"容量表示","太陽光以外の再エネ設備",null,"表示","ガス設備","（参考値※）",{"$f":"IF(OR(J31=W135,J31=W136),\"※燃料単価\",\"\")","v":""}]
[null,null,"発電量［MJ］",null,"コージェネレーション",null,null,{"$f":"IF(ISERROR(-LOOKUP(1,-LEFT(E150,ROW($1:$16)))),\"\",-LOOKUP(1,-LEFT(E150,ROW($1:$16))))","v":""},null,"基準値",{"$f":"IF(ISERROR(VLOOKUP(K4,P146:R153,2)),\"\",VLOOKUP(K4,P146:R153,2))","v":""},{"$f":"IF(ISERROR(VLOOKUP(K4,P146:R153,3)),\"\",VLOOKUP(K4,P146:R153,3))","v":""},null,null,null,null,"太陽光が\nある場合\n希望する","太陽熱利用：なし\n木質燃料ストーブ：なし\nその他：なし",null,"希望する","都市ガス",{"$f":"IF(AND(H19=\"\",H20=\"\",H21=\"\"),\"\",IF(J31=W135,\"約\"&TEXT(ROUNDUP((H19*27+H20/46.05*156+H21/37.04*88)/10000,1),\"####0.0\")&\"万円/年\",IF(J31=W136,\"約\"&TEXT(ROUNDUP((H19*27+H20/104.22*706+H21/37.04*88)/10000,1),\"####0.0\")&\"万円/年\",\"\")))","v":""},{"$f":"IF(OR(J31=W135,J31=W136),\"電気:27円/kWh\",\"\")","v":""}]
[null,null,null,null,"太陽光発電",null,null,{"$f":"IF(ISERROR(-LOOKUP(1,-LEFT(E151,ROW($1:$16)))),\"\",-LOOKUP(1,-LEFT(E151,ROW($1:$16))))","v":""},null,null,{"$f":"IF(K21=\"\",\"\",IF(K21<=K22,\"適合\",\"－\"))","v":""},{"$f":"IF(L21=\"\",\"\",IF(L21<=L22,\"適合\",\"－\"))","v":""},null,null,null,null,null,null,null,null,"ＬＰガス",null,{"$f":"IF(OR(J31=W135,J31=W136),\"都市:156円/㎥\",\"\")","v":""}]
[null,null,"売電量［MJ］",null,"コージェネレーション",null,null,{"$f":"IF(ISERROR(-LOOKUP(1,-LEFT(E152,ROW($1:$16)))),\"\",-LOOKUP(1,-LEFT(E152,ROW($1:$16))))","v":""},null,"強化外皮基準",{"$f":"IF(ISERROR(VLOOKUP(K4,P146:S153,4)),\"\",VLOOKUP(K4,P146:S153,4))","v":""},null,null,null,null,null,null,null,null,"希望しない","－",null,{"$f":"IF(OR(J31=W135,J31=W136),\"LP:706円/㎥\",\"\")","v":""},null,null,null,null,"非表示（Workエリア）"]
[null,null,null,null,"太陽光発電",null,null,{"$f":"IF(ISERROR(-LOOKUP(1,-LEFT(E153,ROW($1:$16)))),\"\",-LOOKUP(1,-LEFT(E153,ROW($1:$16))))","v":""},null,null,{"$f":"IF(K21=\"\",\"\",IF(K21<=K24,\"適合\",\"－\"))","v":""},null,null,null,null,null,"その他の場合 （「2．BELS評価申請項目」の表で直接選択）",null,null,null,null,null,{"$f":"IF(OR(J31=W135,J31=W136),\"灯油:88円/ℓ\",\"\")","v":""},null,null,null,null,0,"評価申請選択（1-4）：初期値は0"]
[]
[null,"2. BELS評価申請項目 （BELS評価申請書第四面と相違しているとBELS評価プレビューが正しく表示されません。）"]
[null,"再エネ設備の有無",null,null,{"$f":"IF(J8=\"\",\"\",IF(OR(AB29,AC29,AD29,AE29),AA135,IF(OR(AB25=1,AB25=2,AB25=3),AA136,AA137)))","v":""},null,"再エネ種類",null,null,null,null,null,null,null,{"$f":"IF(AE29,U139,\"\")","v":""},null,null,null,null,null,null,null,null,null,null,null,null,{"$f":"IF(OR($H$23=\"\",$H$23=0),FALSE,TRUE)","v":false},{"$f":"IF($T$193=\"無し\",FALSE,TRUE)","v":false},{"$f":"IF($W$191=\"無し\",FALSE,TRUE)","v":false},null,"管理用（初期設定復帰用）"]
[null,"再エネ容量の表示希望",null,null,{"$f":"IF(J8=\"\",\"\",IF(E28=AA136,Y138,IF(AND(H23<>\"\",H23<>0,OR(AB25=1,AB25=2,AB25=3)),Y135,Y137)))","v":""},null,"再エネ容量",{"$f":"IF(OR(J8=\"\",E29=Y138),\"\",IF(E29=Y136,\"－\",IF(Q195=0,\"\",Q195&\"kW\")))","v":""},{"$f":"IF(OR(J8=\"\",E29=Y138),\"\",IF(E29=Y136,\"－\",\"\"))","v":""},{"$f":"IF(OR(J8=\"\",E29=Y138),\"\",IF(E29=Y136,\"－\",\"\"))","v":""},{"$f":"IF(OR(J8=\"\",E29=Y138),\"\",IF(E29=Y136,\"－\",\"\"))","v":""},null,null,null,{"$f":"IF(E29=Y135,IF(AND(AB29,OR(AC29,AD29,AE29)),Y139,IF(AB29,Y140,IF(OR(AC29,AD29,AE29),Y141,\"\"))),\"\")","v":""},null,null,null,null,null,null,null,null,null,null,null,null,{"$f":"IF(OR($H$23=\"\",$H$23=0),FALSE,TRUE)","v":false},{"$f":"IF($T$193=\"無し\",FALSE,TRUE)","v":false},{"$f":"IF($W$191=\"無し\",FALSE,TRUE)","v":false},null,"実行用"]
[null,"エネルギーの多段階表示",null,null,{"$f":"IF(J8=\"\",\"\",IF(OR(H23=\"\",H23=0),X135,X136))","v":""},null,"「ZEHマーク」",{"$f":"IF(J8=\"\",\"\",IF(AND(K21<=K24,L21<=L22,X108>=20,X111>=100,H23>0),Q135,IF(AND(K21<=K24,L21<=L22,X108>=20,X111>=75,X111<100,H23>0),Q136,IF(AND(K21<=K24,L21<=L22,X108>=20),Q139,Q138))))","v":""},null,"ZEH Orientedの要件",null,{"$f":"IF(H30=\"\",\"\",IF(H30=Q137,Z135,Z136))","v":""},null,null,{"$f":"IF(H30=Q139,Q141,IF(H30=Q137,Q140,\"\"))","v":""}]
[null,"目安光熱費の表示",null,null,{"$f":"IF(OR(J5=S136,J5=S137,AD29),V136,IF(J8=\"\",\"\",IF(OR(AB25=1,AB25=2),V135,IF(AB25=3,V136,V137))))","v":""},null,"ガス設備の選択",null,null,{"$f":"IF(OR(E31=V136,AB25=3,AD29),W138,IF(AB25=1,W135,IF(AB25=2,W136,IF(E31=V135,W137,\"\"))))","v":""},null,null,null,null,{"$f":"IF(AD29,V139,\"\")","v":""}]
[]
[null,"3. BELS評価プレビュー （端数処理等の影響でBELS評価書と誤差が生じることがあります。相違時はBELS評価書を優先します。）",null,null,null,null,null,null,null,null,null,null,null,null,null,null,null,null,null,null,null,null,null,null,null,null,null,1,2,3,0]
[null,"住宅 （住戸）",null,null,null,"エネルギー消費性能",null,null,null,null,null,null,null,null,null,null,null,null,null,null,null,null,null,null,null,null,null,"★","🌟","☆"]
[null,null,null,null,null,{"$f":"IF(AB42=3,$AD$34,IF(AB42=2,$AC$34,IF(AB42=1,$AB$34,\"\")))","v":""},"","","","",""]
[null,"物件概要"]
[null,"建物名称："]
[null,{"$f":"IF(E4=\"\",\"\",IF(OR(RIGHT(E4,9)=\" ( 戸建住宅 )\",RIGHT(E4,9)=\" ( 共同住宅 )\"),LEFT(E4,LEN(E4)-9),E4))","v":""},null,null,null,null,null,null,null,null,null,null,null,null,null,null,null,null,null,null,null,null,null,null,null,null,null,1,2,3,4,5,6]
[null,{"$f":"IF(K4=\"\",\"地域の区分：\",\"地域の区分：\"&K4&\"地域\")","v":"地域の区分："},null,null,{"$f":"IF(E30=X135,\"★ 再エネなしの一次エネルギー消費量削減率\",\"★ 再エネなしの一次エネルギー消費量削減率　　🌟 太陽光発電分の一次エネルギー消費量削減率\")","v":"★ 再エネなしの一次エネルギー消費量削減率　　🌟 太陽光発電分の一次エネルギー消費量削減率"},null,null,null,null,null,null,null,null,null,null,null,null,null,null,null,null,null,null,null,null,null,null,{"$f":"IF(E45=\"\",0,IF(E45>=0,1,IF(H45>=0,2,3)))","v":0},{"$f":"IF(E45=\"\",0,IF(E45>=0.1,1,IF(H45>=0.1,2,3)))","v":0},{"$f":"IF(E45=\"\",0,IF(E45>=0.2,1,IF(H45>=0.2,2,3)))","v":0},{"$f":"IF(E45=\"\",0,IF(E45>=0.3,1,IF(H45>=0.3,2,3)))","v":0},{"$f":"IF(E45=\"\",0,IF(E45>=0.4,1,IF(H45>=0.4,2,3)))","v":0},{"$f":"IF(E45=\"\",0,IF(E45>=0.5,1,IF(H45>=0.5,2,3)))","v":0}]
[null,null,null,null,null,null,null,null,null,null,null,null,null,null,null,null,null,null,null,null,null,null,null,null,null,null,null,null,1,2,3,4]
[null,"評価概要",null,null,"再エネなし",null,null,"再エネあり\n（自家消費分）",null,null,"再エネあり\n（自家消費分＋売電分）",null,null,null,null,null,null,null,null,null,null,null,null,null,null,null,null,null,{"$f":"IF(E45=\"\",0,IF(E45>=0,1,3))","v":0},{"$f":"IF(E45=\"\",0,IF(E45>=0.1,1,3))","v":0},{"$f":"IF(E45=\"\",0,IF(E45>=0.2,1,3))","v":0},{"$f":"IF(E45=\"\",0,IF(E45>=0.3,1,3))","v":0}]
[null,"評価対象：住宅",null,null,null,null,null,null,null,null,null,null,null,null,null,null,null,null,null,null,null,null,null,null,null,null,null,{"$f":"IF(E30=X136,AB39,\"\")","v":""},{"$f":"IF(E30=X136,AC39,IF(E30=X135,AC41,\"\"))","v":""},{"$f":"IF(E30=X136,AD39,IF(E30=X135,AD41,\"\"))","v":""},{"$f":"IF(E30=X136,AE39,IF(E30=X135,AE41,\"\"))","v":""},{"$f":"IF(E30=X136,AF39,IF(E30=X135,AF41,\"\"))","v":""},{"$f":"IF(E30=X136,AG39,\"\")","v":""}]
[null,{"$f":"IF(I4=\"\",\"\",IF(COUNTIF(I4,\"*\"&\"戸建\"&\"*\"),\"（一戸建ての住宅）\",IF(COUNTIF(I4,\"*\"&\"共同\"&\"*\"),\"（店舗等併用住宅の住戸部分）\",\"\")))","v":""},null,null,"削減率","BEI値",null,"削減率","BEI値",null,"削減率","BEI値",null,null,null,null,null,null,null,null,null,null,null,null,null,null,null,"非表示（Workエリア）"]
[null,"評価手法："]
[null,"・一次エネルギー消費量",null,null,{"$f":"IF(X108=\"\",\"\",X108/100)","v":""},{"$f":"IF(X108=\"\",\"\",AD183)","v":""},null,{"$f":"IF(X108=\"\",\"\",IF(E30=X135,\"━\",U187/100))","v":""},{"$f":"IF(E30=X135,\"━\",AD181)","v":""},null,{"$f":"IF(X108=\"\",\"\",IF(E30=X135,\"━\",X112/100))","v":""},{"$f":"IF(X108=\"\",\"\",IF(E30=X135,\"━\",1-X112/100))","v":""}]
[null,{"$f":"IF(J5=S139,\"\",\" \"&J5)","v":" "}]
[null,"・断熱性能（外皮性能）",null,null,null,null,null,null,null,null,{"$f":"IF(OR(H16=0,H16=\"\"),\"\",\"※ CGSの売電を除く\")","v":""}]
[null,{"$f":"\" \"&E5","v":" "},null,null,"断 熱 性 能"]
[null,"XMLID：",null,null,"UA値","ηAC値"]
[null,{"$f":"IF(ISERROR(D131),\"\",\" \"&MID(D131,10,18))","v":" "},null,null,null,null,{"$f":"IF($Q157>3,3,IF($Q157=3,\"3以下\",\"-\"))","v":"-"},{"$f":"IF($Q157>=4,4,\"-\")","v":"-"},{"$f":"IF($Q157>=5,5,\"-\")","v":"-"},{"$f":"IF($Q157>=6,6,\"-\")","v":"-"},{"$f":"IF($Q157>=7,7,\"-\")","v":"-"}]
[null,"再出力コード :",null,null,{"$f":"K21","v":""},{"$f":"L21","v":""}]
[null,{"$f":"IF(ISERROR(D131),\"\",\" \"&RIGHT(D131,19))","v":" "}]
[]
[null,"目安光熱費",null,null,"達 成 項 目"]
[null,{"$f":"IF(E31=V136,\"なし\",IF(AND(E31=V135,J31=W135),\"ガス設備：\"&J31,IF(AND(E31=V135,J31=W136),\"ガス設備：\",\"\")))","v":""},null,null,"ZEH水準",null,"ネット・ゼロ・\nエネルギー",null,"再エネ設備"]
[null,{"$f":"IF(E31=V136,\"\",IF(AND(E31=V135,J31=W136),\" \"&J31,\"\"))","v":""}]
[null,null,null,null,{"$f":"IF(AND(E45>=0.2,Q157>=5),\"☑\",\"-\")","v":"-"},null,{"$f":"IF(AND(E45<>\"\",Y119=\"適合\"),\"☑\",\"-\")","v":"-"},{"$f":"IF(Y119=\"適合\",W119,\"－\")","v":"－"},{"$f":"IF(OR(E28=AA135,E28=AA136),E28,\"\")","v":""},{"$f":"IF(AB29,\"太陽光発電\",\"－\")","v":"－"},{"$f":"IF(E29=Y135,H29,\"\")","v":""}]
[null,null,null,null,null,null,null,null,null,{"$f":"IF(AC29,\"太陽熱利用\",\"－\")","v":"－"},{"$f":"IF(E29=Y135,I29,\"\")","v":""}]
[null,null,null,null,null,null,null,null,null,{"$f":"IF(AD29,\"木質ストーブ\",\"－\")","v":"－"},{"$f":"IF(E29=Y135,J29,\"\")","v":""}]
[null,null,null,null,null,null,null,null,null,{"$f":"IF(AE29,IF(L28=\"\",\"その他\",L28),\"－\")","v":"－"},{"$f":"IF(E29=Y135,K29,\"\")","v":""}]
[]
[null,"省エネ性能",null,"一次エネルギー消費性能（GJ/年）",null,null,"断熱性能",null,null,null,null,"総合判定"]
[null,null,null,"設計一次","基準一次","判定","UA値","基準（UA）","ηAC値","基準（η）","判定"]
[null,null,"省エネ基準",{"$f":"IF(AC159=0,\"\",AC159)","v":""},{"$f":"IF(AC160=0,\"\",AC160)","v":""},{"$f":"IF(D64=\"\",\"\",IF(D64<=E64,\"達成\",\"非達成\"))","v":""},{"$f":"K21","v":""},{"$f":"Q159","v":""},{"$f":"L21","v":""},{"$f":"R159","v":""},{"$f":"IF(G64=\"\",\"\",IF(AND(G64<=H64,I64<=J64),\"達成\",\"非達成\"))","v":""},{"$f":"IF(F64=\"\",\"\",IF(AND(F64=\"達成\",K64=\"達成\"),\"達成\",\"非達成\"))","v":""}]
[null,null,"誘導基準",{"$f":"IF(AC163=0,\"\",AC163)","v":""},{"$f":"IF(AC164=0,\"\",AC164)","v":""},{"$f":"IF(D65=\"\",\"\",IF(D65<=E65,\"達成\",\"非達成\"))","v":""},{"$f":"K21","v":""},{"$f":"S159","v":""},{"$f":"L21","v":""},{"$f":"T159","v":""},{"$f":"IF(G65=\"\",\"\",IF(AND(G65<=H65,I65<=J65),\"達成\",\"非達成\"))","v":""},{"$f":"IF(F65=\"\",\"\",IF(AND(F65=\"達成\",K65=\"達成\"),\"達成\",\"非達成\"))","v":""}]
[]
[null,"特記項目","「ZEHマーク」に関する事項",null,null,null,"参考情報","5-2 等級","設計/基準","一次エネ消費","削減率","削減率"]
[null,null,"再エネ等除いた削減率",null,{"$f":"IF(ISERROR(X108/100),\"\",IF(E70=\"－\",E70,X108/100))","v":""},null,null,null,"一次(GJ/年)","(MJ/㎡･年)","売電含まない","売電分を含む"]
[null,null,"再エネ等加えた削減率",null,{"$f":"IF(ISERROR(X111/100),\"\",IF(OR(E70=\"－\",E70=$Q$137),\"－\",X111/100))","v":""},null,null,{"$f":"T125","v":""},{"$f":"IF(OR(T127=\"\",T126=\"\"),\"\",TEXT(T127,\"#####.0\")&\"/\"&TEXT(T126,\"#####.0\"))","v":""},{"$f":"T128","v":""},{"$f":"IF(OR(T129=\"－\",T129=\"\"),T129,T129&\" %\")","v":""},{"$f":"IF(OR(T130=\"－\",T130=\"\"),T130,T130&\" %\")","v":""}]
[null,null,"「ZEHマーク」",null,{"$f":"IF(H30=\"\",\"\",IF(Y119=\"適合\",H30,\"－\"))","v":""}]
["非表示（様式拡張用の予備スペース）"]
[]
[]
[]
[]
[]
[]
[]
[]
[]
[]
[]
[]
[]
[]
[]
[]
[]
[]
[]
[]
[]
[]
[]
[]
[]
[]
[]
["99行まで非表示（様式拡張用の予備スペース）"]
[null,null,null,null,null,{"$f":"IF(E70=Q137,\"※ZEH Orientedは別途要件あり\",\"\")","v":""},null,null,null,null," ⇐ PDF貼付けセル"]
["非表示（Ｊ100セルから読込開始）"]
[null,null,null,null,null,null,null,null,null,null,null,null," "]
[null,null,"抽出文字列","抽出結果","Work or 説明",null,null,null,null,null,null,null," "]
[null,null,"1．住宅タイプの設計一次エネルギー消費量等",null,null,null,null,null,null,null,null,null," ",null,null,"●旧評価書記載事項【計算結果・設計内容（現況）説明書記載事項】"]
[null,null,"名称",{"$f":"IF($J$100=\"\",\"\",INDEX($J$100:$J$499,MATCH(\"*\"&C105&\"*\",$J$100:$J$499,0),1))","v":""},{"$f":"IF(D105<>\"\",MID(D105,FIND(\"(建て方)\",D105)+6,LEN(D105)),\"\")","v":""},null,null,null,null,null,null,null," ",null,null,"「ZEHマーク」に関する事項"]
[null,null,"床面積",{"$f":"IF($J$100=\"\",\"\",INDEX($J$100:$J$499,MATCH(\"*\"&C106&\"*\",$J$100:$J$499,0)+1,1))","v":""},null,null,null,null,null,null,null,null," ",null,null,"再生可能エネルギー等除き",null,null,"設計一次エネルギー消費量（その他除く） GJ",null,null,null,null,{"$f":"IF(ISERROR(AD182),\"\",AD182)","v":0}]
[null,null,"地域の区分",{"$f":"IF($J$100=\"\",\"\",INDEX($J$100:$J$499,MATCH(\"*\"&C107&\"*\",$J$100:$J$499,0),1))","v":""},null,null,null,null,null,null,null,null," ",null,null,null,null,null,"一次エネルギー消費削減量（その他除く） GJ",null,null,null,null,{"$f":"IF(ISERROR(J18-AD182),\"\",J18-AD182)","v":""}]
[null,null,"暖房設備",{"$f":"IF($J$100=\"\",\"\",INDEX($J$100:$J$499,MATCH(C108&\"*\",$J$100:$J$499,0),1))","v":""},null,null,null,null,null,null,null,null," ",null,null,null,null,null,"一次エネルギー消費量（その他除く）の削減率　　％",null,null,null,null,{"$f":"U184","v":""}]
[null,null,"冷房設備","",null,null,null,null,null,null,null,null," ",null,null,"再生可能エネルギー等加え",null,null,"設計一次エネルギー消費量（その他除く） GJ",null,null,null,null,{"$f":"IF(ISERROR(AD184),\"\",AD184)","v":0}]
[null,null,"換気設備","",null,null,null,null,null,null,null,null," ",null,null,null,null,null,"一次エネルギー消費削減量（その他除く） GJ",null,null,null,null,{"$f":"IF(ISERROR(J18-AD184),\"\",J18-AD184)","v":""}]
[null,null,"給湯設備","",null,null,null,null,null,null,null,null," ",null,null,null,null,null,"一次エネルギー消費量（その他除く）の削減率　　％",null,null,null,null,{"$f":"U185","v":""},null,"第二面"]
[null,null,"照明設備","",null,null,null,null,null,null,null,null," ",null,null,null,null,null,"一次エネルギー消費量（その他除く）の削減率　　％",null,null,null,null,{"$f":"U186","v":""},null,"第一面"]
[null,null,"その他の設備","",null,null,null,null,null,null,null,null," "]
[null,null,"太陽光発電(PV)",{"$f":"IF(ISERROR(INDEX($J$100:$J$499,MATCH(C114&\"*\",$J$100:$J$499,0),1)),\"\",IF($J$100=\"\",\"\",INDEX($J$100:$J$499,MATCH(C114&\"*\",$J$100:$J$499,0),1)))","v":""},null,null,null,null,null,null,null,null," "]
[null,null,"コージェネレーション設備の売電量に係る控除量",{"$f":"IF(ISERROR(INDEX($J$100:$J$499,MATCH(C115&\"*\",$J$100:$J$499,0),1)),\"\",IF($J$100=\"\",\"\",INDEX($J$100:$J$499,MATCH(C115&\"*\",$J$100:$J$499,0)-1,1)))","v":""},null,null,null,null,null,null,null,null," ",null,null,"●旧評価書記載事項【評価書プレビュー】"]
[null,null,"↓",{"$f":"IF(ISERROR(INDEX($J$100:$J$499,MATCH(C115&\"*\",$J$100:$J$499,0),1)),\"\",IF($J$100=\"\",\"\",INDEX($J$100:$J$499,MATCH(C115&\"*\",$J$100:$J$499,0),1)))","v":""},null,null,null,null,null,null,null,null," ",null,null,"一面","BEIの値（削減率）",null,null,{"$f":"L18","v":""},{"$f":"IF(T116=\"\",\"\",\"(\"&ROUND((1-T116)*100,0)&\"%削減)\")","v":""},{"$f":"IF(COUNTBLANK(T116)=1,\"\",IF(V145<>\"適合\",\"－\",IF(T116<=0.8,\"☆☆☆☆☆\",IF(AND(T116>0.8,T116<=0.85),\"☆☆☆☆\",IF(AND(T116>0.85,T116<=0.9),\"☆☆☆\",IF(AND(T116>0.9,T116<=1),\"☆☆\",IF(AND(T116>1,T116<=1.1),\"☆\",\"－\")))))))","v":""}]
[null,null,null,null,null,null,null,null,null,null,null,null," ",null,null,null,"単位面積当たりの\n一次エネルギー消費量(MJ/㎡・年)",null,null,"設計値（その他除く）",null,{"$f":"IF(E6=\"\",\"\",ROUNDUP(H18*1000/E6,0))","v":""},"設計値（その他含む）",null,{"$f":"IF(E6=\"\",\"\",ROUNDUP((AC159*1000)/E6,0))","v":""}]
[null,null,"2．判定",null,null,null,null,null,null,null,null,null," ",null,null,null,null,null,null,"基準値（その他除く）",null,{"$f":"IF(E6=\"\",\"\",ROUNDUP(AC159*1000/E6,0))","v":""},"基準値（その他含む）",null,{"$f":"IF(E6=\"\",\"\",ROUNDUP(AC160*1000/E6,0))","v":""}]
[null,null,"H28年4月以降",{"$f":"IF($J$100=\"\",\"\",INDEX($J$100:$J$499,MATCH(C119&\"*\",$J$100:$J$499,0)+1,1))","v":""},"等級4設計",null,null,null,null,null,null,null," ",null,null,null,"「ＺＥＨマーク」、「ゼロエネ相当」、「ZEH-Mマーク」に関する事項　／　判定",null,null,null,null,null,{"$f":"IF(H30=\"\",\"\",H30)","v":""},null,{"$f":"IF(ISERROR(IF(OR(H30=\"\",K4=\"\",AND(K4<8,K21=\"\"),X108=\"\",X111=\"\"),\"\",IF(OR(AND(H30=Q135,K21<=K24,L21<=L22,X108>=20,X111>=100,H23>0),AND(H30=Q136,K21<=K24,L21<=L22,X108>=20,X111>=75,X111<100,H23>0),AND(H30=Q137,K21<=K24,L21<=L22,X108>=20,X111<75,H23>0),AND(H30=Q137,K21<=K24,L21<=L22,X108>=20,H23=0),AND(H30=Q137,K21<=K24,L21<=L22,X108>=20,H23=\"\")),\"適合\",\"－\"))),\"－\",IF(OR(H30=\"\",K4=\"\",AND(K4<8,K21=\"\"),X108=\"\",X111=\"\"),\"\",IF(OR(AND(H30=Q135,K21<=K24,L21<=L22,X108>=20,X111>=100,H23>0),AND(H30=Q136,K21<=K24,L21<=L22,X108>=20,X111>=75,X111<100,H23>0),AND(H30=Q137,K21<=K24,L21<=L22,X108>=20,X111<75,H23>0),AND(H30=Q137,K21<=K24,L21<=L22,X108>=20,H23=0),AND(H30=Q137,K21<=K24,L21<=L22,X108>=20,H23=\"\")),\"適合\",\"－\")))","v":""}]
[null,null,"H28年4月現存",{"$f":"IF($J$100=\"\",\"\",INDEX($J$100:$J$499,MATCH(C120&\"*\",$J$100:$J$499,0)-1,1))","v":""},"等級4基準",null,null,null,null,null,null,null," ",null,null,null,"再生可能エネルギーを除いた設計一次エネルギー消費量の基準一次エネルギー消費量からの削減率",null,null,null,null,null,null,null,{"$f":"X108","v":""},"%削減"]
[null,null,null,{"$f":"D119","v":""},"等級5設計",null,null,null,null,null,null,null," ",null,null,null,"再生可能エネルギーを加えた設計一次エネルギー消費量の基準一次エネルギー消費量からの削減率",null,null,null,null,null,null,null,{"$f":"IF(W119=Q137,\"\",X111)","v":""},"%削減"]
[null,null,"低炭素化の促進のために誘導すべきその他の基準",{"$f":"IF($J$100=\"\",\"\",INDEX($J$100:$J$499,MATCH(C122&\"*\",$J$100:$J$499,0)-1,1))","v":""},"等級5基準",null,null,null,null,null,null,null," "]
[null,null,"R04年10月以降",{"$f":"IF($J$100=\"\",\"\",INDEX($J$100:$J$499,MATCH(C123&\"*\",$J$100:$J$499,0)+1,1))","v":""},"等級6設計",null,null,null,null,null,null,null," ",null,null,"●旧評価書記載事項【参考情報　品確法 5-1、5-2 等級判定】"]
[null,null,"R04年10月現存",{"$f":"IF($J$100=\"\",\"\",INDEX($J$100:$J$499,MATCH(C124&\"*\",$J$100:$J$499,0)-1,1))","v":""},"等級6基準",null,null,null,null,null,null,null," ",null,null,"5-1　等級　（4・5・6・7）",null,null,null,{"$f":"Q157","v":0}]
[null,null,null,null,null,null,null,null,null,null,null,null," ",null,null,"5-2　等級　（4・5・6・7・8）",null,null,null,{"$f":"IF(AC159=0,\"\",IF(AF167=\"適合\",8,IF(AF165=\"適合\",7,IF(AF163=\"適合\",6,IF(AF161=\"適合\",5,IF(AF159=\"適合\",4,\"－\"))))))","v":""}]
[null,null,"3．BEI",null,null,null,null,null,null,null,null,null," ",null,null,{"$f":"IF(T125=\"\",\"\",T125)","v":""},"基準一次エネルギー　[GJ]",null,null,{"$f":"IF(T125=8,AC168,IF(T125=7,AC166,IF(T125=6,AC164,IF(T125=5,AC162,IF(T125=4,AC160,\"\")))))","v":""}]
[null,null,"一次エネルギー消費量(その他除く)",{"$f":"IF($J$100=\"\",\"\",INDEX($J$100:$J$499,MATCH(\"*\"&C127&\"*\",$J$100:$J$499,0)+4,1))","v":""},"省エネ基準：設計",null,null,null,null,null,null,null," ",null,null,{"$f":"IF(T125=\"\",\"\",T125)","v":""},"設計一次エネルギー　[GJ]",null,null,{"$f":"IF(T125=8,AC167,IF(T125=7,AC165,IF(T125=6,AC163,IF(T125=5,AC161,IF(T125=4,AC159,\"\")))))","v":""}]
[null,null,"↓",{"$f":"IF($J$100=\"\",\"\",INDEX($J$100:$J$499,MATCH(\"*\"&C127&\"*\",$J$100:$J$499,0)+5,1))","v":""},"基準エネルギー",null,null,null,null,null,null,null," ",null,null,"設計一次エネルギー表示値　[MJ/㎡・年]",null,null,null,{"$f":"IF(OR(T127=\"\",E6=\"\"),\"\",IF(OR(T125=8,T125=7,T125=6),ROUNDUP(T127*1000/E6,0),\"－\"))","v":""}]
[null,null,"↓",{"$f":"IF($J$100=\"\",\"\",INDEX($J$100:$J$499,MATCH(\"*\"&C127&\"*\",$J$100:$J$499,0)+6,1))","v":""},"省エネ基準：BEI",null,null,null,null,null,null,null," ",null,null,"設計一次エネルギー削減量（自家消費分）",null,null,null,{"$f":"IF(OR(T127=\"\",E6=\"\"),\"\",IF(OR(T125=8,T125=7,T125=6),ROUNDDOWN(ABS(SUM(H14))/E6/ROUNDUP(T127*1000/E6,0)*100,0),\"－\"))","v":""}]
[null,null,"↓",{"$f":"IF($J$100=\"\",\"\",INDEX($J$100:$J$499,MATCH(\"*\"&C127&\"*\",$J$100:$J$499,0)+7,1))","v":""},"誘導基準：設計・BEI",null,null,null,null,null,null,null," ",null,null,"設計一次エネルギー削減量（自家＋売電）",null,null,null,{"$f":"IF(OR(T127=\"\",E6=\"\"),\"\",IF(OR(T125=8,T125=7,T125=6),ROUNDDOWN((ABS(SUM(H14))+SUM(H25)*1)/E6/ROUNDUP(T127*1000/E6,0)*100,0),\"－\"))","v":""}]
[null,null,"XML ID",{"$f":"IF($J$100=\"\",\"\",INDEX($J$100:$J$499,MATCH(C131&\"*\",$J$100:$J$499,0),1))","v":""},null,null,null,null,null,null,null,null," "]
[null,null,null,null,null,null,null,null,null,null,null,null," ",null,null,"●データの入力規則"]
[null,null,"4．住宅タイプの仕様",null,null,null,null,null,null,null,null,null," ",null,null,null,"ＺＥＨマーク",null,"一次エネ設計","外皮設計","再エネ設備","光熱費","ガス種類","省エネ表示","容量表示","ZEH Oriented要件","再エネ設備"]
[null,null,"外皮性能の評価方法",{"$f":"IF($J$100=\"\",\"\",INDEX($J$100:$J$499,MATCH(\"*\"&C134&\"*\",$J$100:$J$499,0),1))","v":""},null,null,null,null,null,null,null,null," ",null,null,"H28年基準",null,"国土交通省告示第489号に準拠した計算方法"]
[null,null,"外皮平均熱貫流率",{"$f":"IF($J$100=\"\",\"\",INDEX($J$100:$J$499,MATCH(\"*\"&C135&\"*\",$J$100:$J$499,0),1))","v":""},{"$f":"IF(RIGHT(D135,1)=\"）\",LEFT(D135,FIND(\"（\",D135)-2),D135)","v":""},null,null,null,null,null,null,null," ",null,null,"H25年基準","『ＺＥＨ』","ネット・ゼロ・エネルギー・ハウス支援事業が採用している計算方法","性能基準（平成28年基準）","性能基準（平成28年基準）","太陽光発電","希望する","都市ガス","４段階","希望する","適合","あり"]
[null,null,"平均日射熱取得率",{"$f":"IF($J$100=\"\",\"\",INDEX($J$100:$J$499,MATCH(\"*\"&C136&\"*\",$J$100:$J$499,0),1))","v":""},{"$f":"IF(D136=\"\",\"\",MID(D136,FIND(\"ηAC\",D136)+6,3))","v":""},null,null,null,null,null,null,null," ",null,null,null,"Ｎｅａｒｌｙ　ＺＥＨ",null,"仕様基準（平成28年基準）","仕様基準（平成28年基準）","太陽熱利用","希望しない","液化石油ガス（ＬＰガス）","６段階","希望しない","－","なし"]
[null,null,"その1",{"$f":"IF($J$100=\"\",\"\",INDEX($J$100:$J$499,MATCH(C137&\"*\",$J$100:$J$499,0),1))","v":""},null,null,null,null,null,null,null,null," ",null,null,null,"ＺＥＨ　Ｏｒｉｅｎｔｅｄ",null,"誘導仕様基準（平成28年基準）","誘導仕様基準（平成28年基準）","その他（　　　　　　　）","選択してください","選択してください",null,"選択してください",null,"選択してください"]
[null,null,"その2",{"$f":"IF($J$100=\"\",\"\",INDEX($J$100:$J$499,MATCH(C138&\"*\",$J$100:$J$499,0),1))","v":""},null,null,null,null,null,null,null,null," ",null,null,null,"記載しない",null,"国土交通大臣が認める方法","国土交通大臣が認める方法","－",null,"選択不要",null,"選択不要"]
[null,null,"その3",{"$f":"IF($J$100=\"\",\"\",INDEX($J$100:$J$499,MATCH(C139&\"*\",$J$100:$J$499,0),1))","v":""},null,null,null,null,null,null,null,null," ",null,null,null,"記載しない（※）",null,"選択してください","選択してください"," ※　その他の再エネ利用設備名を「その他／」の右側に記載してください。"," ※　木質燃料ストーブがある場合は、目安光熱費の表示はできません。",null,null," ※　太陽光発電の容量を確認してください。太陽光発電以外の再エネ設備の容量は、各設備の下の欄に記載してください。"]
[null,null,"その4",{"$f":"IF($J$100=\"\",\"\",INDEX($J$100:$J$499,MATCH(C140&\"*\",$J$100:$J$499,0),1))","v":""},null,null,null,null,null,null,null,null," ",null,null,null," ※　ZEH Orientedの要件に適合しない場合は、ZEH Orientedを選択できません。",null,null,null,null,null,null,null," ※　太陽光発電の容量を確認してください。"]
[null,null,"J.液体集熱",{"$f":"IF($J$100=\"\",\"\",INDEX($J$100:$J$499,MATCH(C141&\"*\",$J$100:$J$499,0),1))","v":""},null,null,null,null,null,null,null,null," ",null,null,null," ※　ZEH Orientedの要件に適合する場合は、ZEH Orientedの選択が可能な性能値です。",null,null,null,null,null,null,null," ※　再エネ設備の容量は、各設備の下の欄に記載してください。"]
[null,null,"K.空気集熱",{"$f":"IF($J$100=\"\",\"\",INDEX($J$100:$J$499,MATCH(C142&\"*\",$J$100:$J$499,0)+3,1))","v":""},null,null,null,null,null,null,null,null," "]
[null,null,"ストーブ",{"$f":"IF($J$100=\"\",\"\",INDEX($J$100:$J$499,MATCH(\"*\"&C143&\"*\",$J$100:$J$499,0),1))","v":""},null,null,null,null,null,null,null,null," "]
[null,null,null,null,null,null,null,null,null,null,null,null," ",null,null,"●地域区分・断熱性能Work"]
[null,null,"5．参考値",null,null,null,null,null,null,null,null,null," ",null,null,{"$f":"K4","v":""},null,null,{"$f":"IF(ISERROR(VLOOKUP(K4,P146:S153,4)),\"\",VLOOKUP(K4,P146:S153,4))","v":""},null,"省エネ基準",{"$f":"IF(OR(AND(K4>=5,K4<=7,K21<=K22,L21<=L22),AND(K4=8,L21<=L22),AND(K4<=4,K21<=K22)),\"適合\",\"－\")","v":"－"}]
[null,null,"消費電力量[kWh] *1 ガス消費量[MJ] 灯油消費量[MJ]",{"$f":"IF(ISERROR(INDEX($J$100:$J$499,MATCH(C146&\"*\",$J$100:$J$499,0)+1,1)),\"\",IF($J$100=\"\",\"\",INDEX($J$100:$J$499,MATCH(C146&\"*\",$J$100:$J$499,0)+1,1)))","v":""},{"$f":"IF(D146<>\"\",D146,\"\")","v":""},"消費電力量",null,null,null,null,null,null," ",null,null,1,0.46,"-",0.4]
[null,null,null,"↓",{"$f":"IF(D146<>\"\",MID(D146,FIND(\" \",D146)+1,20),\"\")","v":""},"ガス消費量",null,null,null,null,null,null," ",null,null,2,0.46,"-",0.4]
[null,null,null,"↓",{"$f":"IF(D146<>\"\",MID(D146,FIND(\"★\",SUBSTITUTE(D146,\" \",\"★\",2))+1,20),\"\")","v":""},"灯油消費量",null,null,null,null,null,null," ",null,null,3,0.56000000000000005,"-",0.5]
[null,null,null,"↓",{"$f":"IF(D146<>\"\",MID(D146,FIND(\"★\",SUBSTITUTE(D146,\" \",\"★\",3))+1,20),\"\")","v":""},"コージェネ売電ガス控除量",null,null,null,null,null,null," ",null,null,4,0.75,"-",0.6]
[null,null,"コージェネレーション太陽光発電コージェネレーション太陽光発電",{"$f":"IF(ISERROR(INDEX($J$100:$J$499,MATCH(C150&\"*\",$J$100:$J$499,0)+1,1)),\"\",IF($J$100=\"\",\"\",INDEX($J$100:$J$499,MATCH(C150&\"*\",$J$100:$J$499,0)+1,1)))","v":""},{"$f":"IF(D150<>\"\",D150,\"\")","v":""},"発電CGS",null,null,null,null,null,null," ",null,null,5,0.87,3,0.6]
[null,null,null,"↓",{"$f":"IF(D150<>\"\",MID(D150,FIND(\" \",D150)+1,20),\"\")","v":""},"発電太陽光",null,null,null,null,null,null," ",null,null,6,0.87,2.8,0.6]
[null,null,null,"↓",{"$f":"IF(D150<>\"\",MID(D150,FIND(\"★\",SUBSTITUTE(D150,\" \",\"★\",2))+1,20),\"\")","v":""},"売電CGS",null,null,null,null,null,null," ",null,null,7,0.87,2.7,0.6]
[null,null,null,"↓",{"$f":"IF(D150<>\"\",MID(D150,FIND(\"★\",SUBSTITUTE(D150,\" \",\"★\",3))+1,20),\"\")","v":""},"売電太陽光",null,null,null,null,null,null," ",null,null,8,"-",6.7,"-"]
[null,null,null,null,null,null,null,null,null,null,null,null," ",null,null,"-","□","□","□"]
[null,null,"読込み方法（PDF種類）",null,null,null,null,null,null,null,null,null," "]
[null,null,"適判用",{"$f":"IF($J$100=\"\",\"\",IF(ISERROR(INDEX($J$100:$J$499,MATCH(C156,$J$100:$J$499,0),1)),\"PDF\",INDEX($J$100:$J$499,MATCH(C156,$J$100:$J$499,0),1)))","v":""},{"$f":"IF(D156=\"適判用\",\"【適判用PDF読込】\",IF(D156=\"PDF\",\"【PDF読込】\",\"\"))","v":""},null,null,null,null,null,null,null," "]
[null,null,null,null,null,null,null,null,null,null,null,null," ",null,null,"●5-1work",{"$f":"IF(K4=\"\",0,IF(X158=\"適合\",7,IF(V158=\"適合\",6,IF(T158=\"適合\",5,IF(R158=\"適合\",4,3)))))","v":0},{"$f":"TEXT(Q159,\"0.00\")&\"/\"&TEXT(R159,\"0.0\")","v":"/"},null,{"$f":"TEXT(S159,\"0.00\")&\"/\"&TEXT(T159,\"0.0\")","v":"/"},null,{"$f":"TEXT(U159,\"0.00\")&\"/\"&TEXT(V159,\"0.0\")","v":"/"},null,{"$f":"TEXT(W159,\"0.00\")&\"/\"&TEXT(X159,\"0.0\")","v":"/"},null,"●5-2work",null,null,null,null,"●5-2等級判定"]
[null,null,null,null,null,null,null,null,null,null,null,null," ",null,null,"地域区分","5-1等級4",{"$f":"IF(OR(AND(K4>=5,K4<=7,K21<=Q159,L21<=R159),AND(K4=8,L21<=R159),AND(K4<=4,K21<=Q159)),\"適合\",\"－\")","v":"－"},"5-1等級5",{"$f":"IF(OR(AND(K4>=5,K4<=7,K21<=S159,L21<=T159),AND(K4=8,L21<=T159),AND(K4<=4,K21<=S159)),\"適合\",\"－\")","v":"－"},"5-1等級6",{"$f":"IF(OR(AND(K4>=5,K4<=7,K21<=U159,L21<=V159),AND(K4=8,L21<=V159),AND(K4<=4,K21<=U159)),\"適合\",\"－\")","v":"－"},"5-1等級7",{"$f":"IF(OR(AND(K4>=5,K4<=7,K21<=W159,L21<=X159),AND(K4<=4,K21<=W159)),\"適合\",\"－\")","v":"－"},null,"等級区分","PDF読込","計算値","採用値",null,"等級","適合判定"]
[null,null,null,null,null,null,null,null,null,null,null,null," ",null,null,{"$f":"K4","v":""},{"$f":"IF(ISERROR(VLOOKUP(P159,P160:X167,4)),\"\",VLOOKUP(P159,P160:X167,2))","v":""},{"$f":"IF(ISERROR(VLOOKUP(P159,P160:X167,4)),\"\",VLOOKUP(P159,P160:X167,3))","v":""},{"$f":"IF(ISERROR(VLOOKUP(P159,P160:X167,4)),\"\",VLOOKUP(P159,P160:X167,4))","v":""},{"$f":"IF(ISERROR(VLOOKUP(P159,P160:X167,4)),\"\",VLOOKUP(P159,P160:X167,5))","v":""},{"$f":"IF(ISERROR(VLOOKUP(P159,P160:X167,4)),\"\",VLOOKUP(P159,P160:X167,6))","v":""},{"$f":"IF(ISERROR(VLOOKUP(P159,P160:X167,4)),\"\",VLOOKUP(P159,P160:X167,7))","v":""},{"$f":"IF(ISERROR(VLOOKUP(P159,P160:X167,4)),\"\",VLOOKUP(P159,P160:X167,8))","v":""},{"$f":"IF(ISERROR(VLOOKUP(P159,P160:X167,4)),\"\",VLOOKUP(P159,P160:X167,9))","v":""},null,"等級4設計",{"$f":"IF(OR(ISERROR(D119),D119=\"\"),\"\",-LOOKUP(1,-LEFT(MID(D119,1,15),ROW($1:$16))))","v":""},{"$f":"ROUNDUP(SUM(H8,H9,H10,H11,H12,H13,ABS(SUM(H14))*(-1),ABS(SUM(H15))*(-1),ABS(SUM(H16))*(-1))/1000,1)","v":0},{"$f":"IF(AA159=\"\",AB159,AA159)","v":0},null,"等級4",{"$f":"IF(AC159<=AC160,\"適合\",\"－\")","v":"適合"}]
[null,null,null,null,null,null,null,null,null,null,null,null," ",null,null,1,0.46,"-",0.4,"-",0.28000000000000003,"-",0.2,"-",null,"等級4基準",{"$f":"IF(OR(ISERROR(D120),D120=\"\"),\"\",IF(RIGHT(D120,3)=\"非達成\",-LOOKUP(1,-RIGHT(LEFT(D120,LEN(D120)-4),ROW($1:$16))),-LOOKUP(1,-RIGHT(LEFT(D120,LEN(D120)-3),ROW($1:$16)))))","v":""},{"$f":"ROUNDUP(SUM(J8,J9,J10,J11,J12,H13)/1000,1)","v":0},{"$f":"IF(AA160=\"\",AB160,AA160)","v":0}]
[null,null,null,null,null,null,null,null,null,null,null,null," ",null,null,2,0.46,"-",0.4,"-",0.28000000000000003,"-",0.2,"-",null,"等級5設計",{"$f":"AA159","v":""},{"$f":"AB159","v":0},0,null,"等級5",{"$f":"IF(AC161<=AC162,\"適合\",\"－\")","v":"適合"}]
[null,null,null,null,null,null,null,null,null,null,null,null," ",null,null,3,0.56000000000000005,"-",0.5,"-",0.28000000000000003,"-",0.2,"-",null,"等級5基準",{"$f":"IF(OR(ISERROR(D122),D122=\"\"),\"\",-LOOKUP(1,-LEFT(MID(D122,10,15),ROW($1:$16))))","v":""},{"$f":"ROUNDUP((SUM(J8,J9,J10,J11,J12)*0.9+SUM(H13))/1000,1)","v":0},0]
[null,null,null,null,null,null,null,null,null,null,null,null," ",null,null,4,0.75,"-",0.6,"-",0.34,"-",0.23,"-",null,"等級6設計",{"$f":"IF(OR(ISERROR(D123),D123=\"\"),\"\",-LOOKUP(1,-LEFT(MID(D123,1,15),ROW($1:$16))))","v":""},{"$f":"ROUNDUP((SUM(H8,H9,H10,H11,H12,H13,ABS(SUM(H16))*(-1),H24)-SUM(H22))/1000,1)","v":0},0,null,"等級6",{"$f":"IF(AC163<=AC164,\"適合\",\"－\")","v":"適合"}]
[null,null,null,null,null,null,null,null,null,null,null,null," ",null,null,5,0.87,3,0.6,3,0.46,3,0.26,3,null,"等級6基準",{"$f":"IF(OR(ISERROR(D124),D124=\"\"),\"\",IF(RIGHT(D124,3)=\"非達成\",-LOOKUP(1,-RIGHT(LEFT(D124,LEN(D124)-4),ROW($1:$16))),-LOOKUP(1,-RIGHT(LEFT(D124,LEN(D124)-3),ROW($1:$16)))))","v":""},{"$f":"ROUNDUP((SUM(J8,J9,J10,J11,J12)*0.8+SUM(H13))/1000,1)","v":0},0]
[null,null,null,null,null,null,null,null,null,null,null,null," ",null,null,6,0.87,2.8,0.6,2.8,0.46,2.8,0.26,2.8,null,"等級7設計",{"$f":"AA163","v":""},{"$f":"AB163","v":0},{"$f":"IF(AA165=\"\",AB165,AA165)","v":0},null,"等級7",{"$f":"IF(AC165<=AC166,\"適合\",\"－\")","v":"適合"}]
[null,null,null,null,null,null,null,null,null,null,null,null," ",null,null,7,0.87,2.7,0.6,2.7,0.46,2.7,0.26,2.7,null,"等級7基準",null,{"$f":"ROUNDUP((SUM(J8,J9,J10,J11,J12)*0.7+SUM(H13))/1000,1)","v":0},0]
[null,null,null,null,null,null,null,null,null,null,null,null," ",null,null,8,"-",6.7,"-",6.7,"-",5.0999999999999996,"-","-",null,"等級8設計",{"$f":"AA163","v":""},{"$f":"AB163","v":0},0,null,"等級8",{"$f":"IF(AC167<=AC168,\"適合\",\"－\")","v":"適合"}]
[null,null,null,null,null,null,null,null,null,null,null,null," ",null,null,"-","□","□","□","□","□","□","□","□",null,"等級8基準",null,{"$f":"ROUNDUP((SUM(J8,J9,J10,J11,J12)*0.65+SUM(H13))/1000,1)","v":0},0]
[null,null,null,null,null,null,null,null,null,null,null,null," "]
[null,null,null,null,null,null,null,null,null,null,null,null," "]
[null,null,null,null,null,null,null,null,null,null,null,null," ",null,null,"●一次エネルギー消費量（MJ値から計算）",null,null,null,null,"●PDF数値読込のエラー防止（計算時はSUM関数で二重にエラー防止）"]
[null,null,null,null,null,null,null,null,null,null,null,null," ",null,null,null,null,"他除","他除",null,{"$f":"IF(ISNUMBER(H14),ABS(SUM(H14))*(-1),0)","v":0},"数値以外の場合は0",null,"PV自家消費"]
[null,null,null,null,null,null,null,null,null,null,null,null," ",null,null,null,null,"MJ","GJ",null,{"$f":"IF(ISNUMBER(H15),ABS(SUM(H15))*(-1),0)","v":0},"数値以外の場合は0",null,"CGS自家消費"]
[null,null,null,null,null,null,null,null,null,null,null,null," ",null,null,"基準一次エネルギー",null,{"$f":"SUM(J8:L12)","v":0},{"$f":"ROUNDUP(R174/1000,1)","v":0},null,{"$f":"IF(ISNUMBER(H16),ABS(SUM(H16))*(-1),0)","v":0},"数値以外の場合は0",null,"CGS売電控除"]
[null,null,null,null,null,null,null,null,null,null,null,null," ",null,null,null,null,null,null,null,{"$f":"IF(ISNUMBER(H22),H22,0)","v":0},"数値以外の場合は0",null,"CGS発電"]
[null,null,null,null,null,null,null,null,null,null,null,null," ",null,null,"設計一次エネルギー",null,"MJ",null,null,{"$f":"IF(ISNUMBER(H23),H23,0)","v":0},"数値以外の場合は0",null,"PV発電"]
[null,null,null,null,null,null,null,null,null,null,null,null," ",null,null,"設備合計",null,{"$f":"SUM(H8:I12)","v":0},null,null,{"$f":"IF(ISNUMBER(H24),H24,0)","v":0},"数値以外の場合は0",null,"CGS売電",null,"●BEI Work"]
[null,null,null,null,null,null,null,null,null,null,null,null," ",null,null,"発電量合計",null,null,null,null,{"$f":"IF(ISNUMBER(H25),H25,0)","v":0},"数値以外の場合は0",null,"PV売電",null,"BEI 区分",null,"PDF読込","計算値","採用値"]
[null,null,null,null,null,null,null,null,null,null,null,null," ",null,null,"CGS自家消費（発電－売電）＋売電控除",null,{"$f":"IF(ISBLANK(H22),\"\",SUM(U175)-SUM(U177)+SUM(U174)*(-1))","v":0},null,null,null,null,null,null,null,"基準エネルギー",null,{"$f":"IF(ISERROR(-LOOKUP(1,-RIGHT(D128,ROW($1:$16)))),\"\",-LOOKUP(1,-RIGHT(D128,ROW($1:$16))))","v":""},{"$f":"TEXT(S174,\"####################.0\")*1","v":0},{"$f":"IF(AB179=\"\",IF(J18=\"\",AC179,J18),AB179)","v":0},"2025/9/18読込値に変更"]
[null,null,null,null,null,null,null,null,null,null,null,null," ",null,null,"自家消費＋CGS売電控除",null,{"$f":"IF(ISBLANK(H15),\"\",SUM(U172)*(-1)+SUM(U175)-SUM(U177)+SUM(U174)*(-1))","v":0},null,null,null,null,null,null,null,"省エネ基準：設計",null,{"$f":"IF(ISERROR(-LOOKUP(1,-RIGHT(D127,ROW($1:$16)))),\"\",-LOOKUP(1,-RIGHT(D127,ROW($1:$16))))","v":""},{"$f":"TEXT(S185,\"####################.0\")*1","v":0},{"$f":"IF(AB180=\"\",IF(H18=\"\",AC180,H18),AB180)","v":0},"2025/9/18読込値に変更"]
[null,null,null,null,null,null,null,null,null,null,null,null," ",null,null,"発電量(CGS＋PV）",null,{"$f":"IF(OR(AND(ISBLANK(H23),ISBLANK(H22)),E6=\"\"),\"\",SUM(U175)+SUM(U176)*(SUM(E6)/SUM(E6,J6)))","v":""},"（PVのみ非住宅と按分する）",null,"●ZEH計算方法",null,null,null,null,"省エネ基準：BEI",null,{"$f":"IF(ISERROR(-LOOKUP(1,-RIGHT(D129,ROW($1:$16)))),\"\",-LOOKUP(1,-RIGHT(D129,ROW($1:$16))))","v":""},{"$f":"IF(AC179=0,\"\",ROUNDUP(AC180/AC179,2))","v":""},{"$f":"IF(AB181=\"\",IF(L18=\"\",AC181,L18),AB181)","v":""}]
[null,null,null,null,null,null,null,null,null,null,null,null," ",null,null,"CGS消費＋発電(PVのみ）",null,{"$f":"IF(OR(ISBLANK(H23),E6=\"\"),\"\",SUM(U175)-SUM(U177)+SUM(U174)*(-1)+SUM(U178)*1-SUM(U172))","v":""},"（※PVは非住宅と按分しない）",null,{"$f":"R134","v":"国土交通省告示第489号に準拠した計算方法"},null,null,null,null,"誘導基準：設計",null,{"$f":"IF(ISERROR(-LOOKUP(1,-LEFT(MID(D130,17,15),ROW($1:$16)))),\"\",-LOOKUP(1,-LEFT(MID(D130,17,15),ROW($1:$16))))","v":""},{"$f":"TEXT(S184,\"####################.0\")*1","v":0},{"$f":"IF(AB182=\"\",AC182,AB182)","v":0},"2025/9/18読込値に変更"]
[null,null,null,null,null,null,null,null,null,null,null,null," ",null,null,"設計一次エネ",null,null,null,null,"告示準拠",null,null,null,null,"誘導基準：BEI",null,{"$f":"IF(ISERROR(-LOOKUP(1,-RIGHT(D130,ROW($1:$16)))),\"\",-LOOKUP(1,-RIGHT(D130,ROW($1:$16))))","v":""},{"$f":"IF(AC179=0,\"\",ROUNDUP(AC182/AC179,2))","v":""},{"$f":"IF(AB183=\"\",AC183,AB183)","v":""}]
[null,null,null,null,null,null,null,null,null,null,null,null," ",null,null,"再除",null,{"$f":"R$177-SUM(R179)","v":0},{"$f":"ROUNDUP(R184/1000,1)","v":0},null,{"$f":"IF(ISERROR((AD179-AD182)/AD179),\"\",IF(AD179-AD182>=0,ROUNDDOWN((AD179-AD182)/AD179*100,0),ROUNDUP((AD179-AD182)/AD179*100,0)))","v":""},"再エネ除く削減率",null,null,null,"再エネ含む（総売電）：二面",null,{"$f":"IF(AND(OR(H24=\"\",H24=0),OR(H23=\"\",H23=0)),AB180,\"\")","v":""},{"$f":"TEXT(S186,\"####################.0\")*1","v":0},{"$f":"IF(AB184=\"\",AC184,AB184)","v":0}]
[null,null,null,null,null,null,null,null,null,null,null,null," ",null,null,"再含（自家消費）",null,{"$f":"R$177-SUM(R180)","v":0},{"$f":"ROUNDUP(R185/1000,1)","v":0},null,{"$f":"IF(ISERROR((AD179-AD184)/AD179),\"\",IF(AD179-AD184>=0,ROUNDDOWN((AD179-AD184)/AD179*100,0),ROUNDUP((AD179-AD184)/AD179*100,0)))","v":""},"再エネ含む削減率（総売電）：第二面",null,null,null,"再エネ含む：BEI",null,{"$f":"IF(AND(OR(H24=\"\",H24=0),OR(H23=\"\",H23=0)),AB181,\"\")","v":""},{"$f":"IF(AC179=0,\"\",IF(AC186<0,ROUNDDOWN(AC186/AC179,2),ROUNDUP(AC186/AC179,2)))","v":""},""]
[null,null,null,null,null,null,null,null,null,null,null,null," ",null,null,"再含（自消＋総売電）",null,{"$f":"R$177-SUM(R181)","v":0},{"$f":"IF(R186<0,ROUNDDOWN(R186/1000,1),ROUNDUP(R186/1000,1))","v":0},null,{"$f":"IF(ISERROR((AD179-AD186)/AD179),\"\",IF(AD179-AD186>=0,ROUNDDOWN((AD179-AD186)/AD179*100,0),ROUNDUP((AD179-AD186)/AD179*100,0)))","v":""},"再エネ含む削減率（PV売電のみ）：第一面（※）",null,null,null,"再エネ含む（PVのみ）：一面",null,{"$f":"IF(AND(OR(H24=\"\",H24=0),OR(H23=\"\",H23=0)),AB180,\"\")","v":""},{"$f":"TEXT(S187,\"####################.0\")*1","v":0},{"$f":"IF(AB186=\"\",AC186,AB186)","v":0}]
[null,null,null,null,null,null,null,null,null,null,null,null," ",null,null,"再含（自消＋PV売電）",null,{"$f":"R$177-SUM(R182)","v":0},{"$f":"IF(R187<0,ROUNDDOWN(R187/1000,1),ROUNDUP(R187/1000,1))","v":0},null,{"$f":"IF(ISERROR((AD179-AD180)/AD179),\"\",IF(AD179-AD180>=0,ROUNDDOWN((AD179-AD180)/AD179*100,0),ROUNDUP((AD179-AD180)/AD179*100,0)))","v":""},"再エネ含む削減率（自家消費）：第一面"]
[null,null,null,null,null,null,null,null,null,null,null,null," ",null,null,null,null,null,null,null,null,"※V13.0でPV自家消費量＋売電量から算定に変更）"]
[null,null,null,null,null,null,null,null,null,null,null,null," "]
[null,null,null,null,null,null,null,null,null,null,null,null," ",null,null,"●太陽光発電容量",null,null,"●太陽熱利用の有無",null,null,"●木質燃料ストーブの有無"]
[null,null,null,null,null,null,null,null,null,null,null,null," ",null,null,"その１",{"$f":"IF(ISERROR(D137),0,IF(LEN(D137)<20,0,-LOOKUP(1,-LEFT(MID(D137,20,6),ROW($1:$16)))))","v":0},null,"J.液体集熱",{"$f":"IF(ISERROR(D141),\"無し\",IF(D141=\"\",\"無し\",IF(RIGHT(D141,5)=\"設置しない\",\"無し\",\"有り\")))","v":"無し"},null,"判定",{"$f":"IF(ISERROR(D143),\"無し\",IF(D143=\"\",\"無し\",IF(RIGHT(D143,4)=\"ストーブ\",\"有り\",\"無し\")))","v":"無し"}]
[null,null,null,null,null,null,null,null,null,null,null,null," ",null,null,"その２",{"$f":"IF(ISERROR(D138),0,IF(LEN(D138)<20,0,-LOOKUP(1,-LEFT(MID(D138,20,6),ROW($1:$16)))))","v":0},null,"K.空気集熱",{"$f":"IF(ISERROR(D142),\"無し\",IF(D142=\"\",\"無し\",IF(RIGHT(D142,5)=\"設置しない\",\"無し\",\"有り\")))","v":"無し"}]
[null,null,null,null,null,null,null,null,null,null,null,null," ",null,null,"その３",{"$f":"IF(ISERROR(D139),0,IF(LEN(D139)<20,0,-LOOKUP(1,-LEFT(MID(D139,20,6),ROW($1:$16)))))","v":0},null,"判定",{"$f":"IF(AND(T191=\"無し\",T192=\"無し\"),\"無し\",\"有り\")","v":"無し"}]
[null,null,null,null,null,null,null,null,null,null,null,null," ",null,null,"その４",{"$f":"IF(ISERROR(D140),0,IF(LEN(D140)<20,0,-LOOKUP(1,-LEFT(MID(D140,20,6),ROW($1:$16)))))","v":0}]
[null,null,null,null,null,null,null,null,null,null,null,null," ",null,null,"合計",{"$f":"SUM(Q191:Q194)","v":0}]
[null,null,null,null,null,null,null,null,null,null,null,null," ",null,null,"按分合計",{"$f":"IF(E6=\"\",\"\",ROUND(Q195*SUM(E6)/SUM(E6,J6),2))","v":""}]
[null,null,null,null,null,null,null,null,null,null,null,null," "]
[null,null,null,null,null,null,null,null,null,null,null,null," "]
[null,null,null,null,null,null,null,null,null,null,null,null," "]
[null,null,null,null,null,null,null,null,null,null,null,null," "]
[null,null,null,null,null,null,null,null,null,null,null,null," "]
[null,null,null,null,null,null,null,null,null,null,null,null," "]
[null,null,null,null,null,null,null,null,null,null,null,null," "]
[null,null,null,null,null,null,null,null,null,null,null,null," "]
[null,null,null,null,null,null,null,null,null,null,null,null," "]
[null,null,null,null,null,null,null,null,null,null,null,null," "]
[null,null,null,null,null,null,null,null,null,null,null,null," "]
[null,null,null,null,null,null,null,null,null,null,null,null," "]
[null,null,null,null,null,null,null,null,null,null,null,null," "]
[null,null,null,null,null,null,null,null,null,null,null,null," "]
[null,null,null,null,null,null,null,null,null,null,null,null," "]
[null,null,null,null,null,null,null,null,null,null,null,null," ",null,null,"更新履歴(V7.0以降)"]
[null,null,null,null,null,null,null,null,null,null,null,null," ",null,null,"V7.0","2018-07-09","入力項目変更（売電量追加）"]
[null,null,null,null,null,null,null,null,null,null,null,null," ",null,null,"V7.1","2018-08-01","一次エネルギー計算結果改訂（V2.4.1以降）に伴う変更"]
[null,null,null,null,null,null,null,null,null,null,null,null," ",null,null,"V7.2","2018-10-01","一次エネルギー計算結果改訂（V2.4.2以降）に伴う変更"]
[null,null,null,null,null,null,null,null,null,null,null,null," ",null,null,"V8.0","2018-10-05","一次エネルギー計算結果改訂（V2.5以降）に伴う変更"]
[null,null,null,null,null,null,null,null,null,null,null,null," ",null,null,"V8.1","2019-10-01","一次エネルギー計算結果改訂（V2.5.1以降）に伴う変更"]
[null,null,null,null,null,null,null,null,null,null,null,null," ",null,null,"V8.2","2019-12-16","ZEH Oriented 注記変更"]
[null,null,null,null,null,null,null,null,null,null,null,null," ",null,null,"V8.3","2020-02-18","地域区分記載改訂（V2.7.2以降)に伴う変更"]
[null,null,null,null,null,null,null,null,null,null,null,null," ",null,null,"V8.4","2020-05-13","一次エネ計算V2.8.1に対応、住戸名称取得変更"]
[null,null,null,null,null,null,null,null,null,null,null,null," ",null,null,"V8.41","2020-09-29","ZEH Oriented エネルギー削減率表記変更"]
[null,null,null,null,null,null,null,null,null,null,null,null," ",null,null,"V8.5","2021-04-01","一次エネ計算V3に対応、UA値取得変更"]
[null,null,null,null,null,null,null,null,null,null,null,null," ",null,null,"V9.0","2021-08-01","ZEH適合判定条件に太陽光発電有りのチェックを追加"]
[null,null,null,null,null,null,null,null,null,null,null,null," ",null,null,"V9.2","2022-04-05","PDF表示方式対応、入力・読込修正欄変更"]
[null,null,null,null,null,null,null,null,null,null,null,null," ",null,null,"V9.3","2022-06-01","BELS評価書交付プログラムV10.3.0対応"]
[null,null,null,null,null,null,null,null,null,null,null,null," ",null,null,"V9.4","2022-07-07","動作改善"]
[null,null,null,null,null,null,null,null,null,null,null,null," ",null,null,"V9.61","2022-11-07","V3.3.x 対応"]
[null,null,null,null,null,null,null,null,null,null,null,null," ",null,null,"V9.62","2023-01-06","等級判定改修（その他含むGJ合計値使用）"]
[null,null,null,null,null,null,null,null,null,null,null,null," ",null,null,"V9.8","2023-04-03","併用住宅の5-1等級6,7表示対応"]
[null,null,null,null,null,null,null,null,null,null,null,null," ",null,null,"V9.9","2023-09-22","外皮性能評価手法表示、等級参考表示変更"]
[null,null,null,null,null,null,null,null,null,null,null,null," ",null,null,"V10.0","2024-02-26","省エネ性能表示対応、BELS新様式対応"]
[null,null,null,null,null,null,null,null,null,null,null,null," ",null,null,"V10.1","2024-05-28","WEBプロV3.3以降対応に限定、目安光熱費参考表示、ZEH水準の判定変更（誘導基準達成）"]
[null,null,null,null,null,null,null,null,null,null,null,null," ",null,null,"V11.0","2024-10-01","WEBプロV3.7対応、削減率表記改定（ZEH無ければ非表示）（、「当該住戸の外皮面積を用いず外皮性能を評価する」廃止対応～大臣の方法は残す）"]
[null,null,null,null,null,null,null,null,null,null,null,null," ",null,null,"V11.1","2024-12-11","再エネ含む削減率算定改修（太陽光無し、コージェネ売電有りに対応）"]
[null,null,null,null,null,null,null,null,null,null,null,null," ",null,null,"V12.0","2025-04-01","４段階表示様式変更、木質燃料ストーブ追加、PDF・省エネ適判登録PDF読込み表示、BELS申請項目・一次エネルギー消費性能注釈改修、非住宅との再エネ共有ルーチン変更（太陽光発電に加えてCGS売電も共有、CGS売電は初めに読み込んだ計算対象床面積で按分、太陽光発電は住宅タブで修正後の床面積で按分されている）、NumLock復帰ルーチン改修"]
[null,null,null,null,null,null,null,null,null,null,null,null," ",null,null,"V12.1","2025-05-01","削減率、BEIの算出を設備のMJ合計からの計算に暫定的に変更（BELS評価書に合わせる）、第一面の再エネ含む削減率にCGS売電を除外（第二面の特記にはCGS売電考慮）"]
[null,null,null,null,null,null,null,null,null,null,null,null," ",null,null,"V12.2","2025-06-01","削減率はMJ計算、BEIはWEBプロから引用"]
[null,null,null,null,null,null,null,null,null,null,null,null," ",null,null,null,null,"第一面の売電含む削減率は非住宅との共有を考慮しない、コージェネ売電は再エネ含む削減率からは除外する"]
[null,null,null,null,null,null,null,null,null,null,null,null," ",null,null,null,null,"断熱性能4未満はすべて「3以下」と表記する"]
[null,null,null,null,null,null,null,null,null,null,null,null," ",null,null,"V12.3","2025-07-11","第二面の再エネ含む削減率は非住宅との按分からCGS売電を除く（太陽光発電のみ按分処理を行う）"]
[null,null,null,null,null,null,null,null,null,null,null,null," ",null,null,"V12.4","2025-09-17","WEBプロV3.9読込対応"]
[null,null,null,null,null,null,null,null,null,null,null,null," ",null,null,null,null,"BELS評価書交付プログラムV13.4対応（削減率を読込値に変更してBEIと一致させる）、ZEH Oriented・ZEH-M Oriented適合条件改定"]
[null,null,null,null,null,null,null,null,null,null,null,null," ",null,null,"V12.5","2025-10-10","5-2等級7，8対応（再エネ削減率表示対応）、特殊文字PDFオープン判定ルーチン改良（繰返し回数上限を5回に設定～約６秒停止で遷移する）"]
[null,null,null,null,null,null,null,null,null,null,null,null," ",null,null,"V13.0","2026-03-09","再エネのプラス値表示に対応（WEBプロV3.10対応）"]
[null,null,null,null,null,null,null,null,null,null,null,null," ",null,null,null,null,"再エネ含む削減率の太陽光データが1面と2面で異なる（1面は自家消費量＋売電量、2面は発電量で繰り上がりの差で１％ずれる）～2026/2/10 評価協に連絡、2026/3/4仕様との回答（松澤さん）"]
[null,null,null,null,null,null,null,null,null,null,null,null," ",null,null,"V13.1","2026-04-01","ZEH水準の適合を誘導基準の判断から削減率による判断に変更。（断熱性能と一次エネ消費性能の削減率の判断にBELSプログラムが改定されたことに対応）"]
[null,null,null,null,null,null,null,null,null,null,null,null," ",null,null,null,null,"PDF読込のファイル選択を途中でキャンセルした場合に読込済みのデータをクリアしない仕様にした"]
[null,null,null,null,null,null,null,null,null,null,null,null," ",null,null,null,null,"開発者版の計算結果データのモニタリングの機能を追加した（一次エネ計算書改定時の確認用で一般配布はしない）"]
[null,null,null,null,null,null,null,null,null,null,null,null," "]
[null,null,null,null,null,null,null,null,null,null,null,null," "]
[null,null,null,null,null,null,null,null,null,null,null,null," ",null,null,"改善課題","・再エネ含む削減率の太陽光データが1面と2面で異なる（1面は自家消費量＋売電量、2面は発電量で繰り上がりの差で１％ずれる）～2026/2/10 評価協に連絡、2026/3/4仕様との回答（松澤さん）"]
[null,null,null,null,null,null,null,null,null,null,null,null," "]
[null,null,null,null,null,null,null,null,null,null,null,null," "]
[null,null,null,null,null,null,null,null,null,null,null,null," "]
[null,null,null,null,null,null,null,null,null,null,null,null," "]
[null,null,null,null,null,null,null,null,null,null,null,null," "]
[null,null,null,null,null,null,null,null,null,null,null,null," "]
[null,null,null,null,null,null,null,null,null,null,null,null," "]
[null,null,null,null,null,null,null,null,null,null,null,null," "]
[null,null,null,null,null,null,null,null,null,null,null,null," "]
[null,null,null,null,null,null,null,null,null,null,null,null," "]
[null,null,null,null,null,null,null,null,null,null,null,null," "]
[null,null,null,null,null,null,null,null,null,null,null,null," "]
[null,null,null,null,null,null,null,null,null,null,null,null," "]
[null,null,null,null,null,null,null,null,null,null,null,null," "]
[null,null,null,null,null,null,null,null,null,null,null,null," "]
[null,null,null,null,null,null,null,null,null,null,null,null," "]
[null,null,null,null,null,null,null,null,null,null,null,null," "]
[null,null,null,null,null,null,null,null,null,null,null,null," "]
[null,null,null,null,null,null,null,null,null,null,null,null," "]
[null,null,null,null,null,null,null,null,null,null,null,null," "]
[null,null,null,null,null,null,null,null,null,null,null,null," "]
[null,null,null,null,null,null,null,null,null,null,null,null," "]
[null,null,null,null,null,null,null,null,null,null,null,null," "]
[null,null,null,null,null,null,null,null,null,null,null,null," "]
[null,null,null,null,null,null,null,null,null,null,null,null," "]
[null,null,null,null,null,null,null,null,null,null,null,null," "]
[null,null,null,null,null,null,null,null,null,null,null,null," "]
[null,null,null,null,null,null,null,null,null,null,null,null," "]
[null,null,null,null,null,null,null,null,null,null,null,null," "]
[null,null,null,null,null,null,null,null,null,null,null,null," "]
[null,null,null,null,null,null,null,null,null,null,null,null," "]
[null,null,null,null,null,null,null,null,null,null,null,null," "]
[null,null,null,null,null,null,null,null,null,null,null,null," "]
[null,null,null,null,null,null,null,null,null,null,null,null," "]
[null,null,null,null,null,null,null,null,null,null,null,null," "]
[null,null,null,null,null,null,null,null,null,null,null,null," "]
[null,null,null,null,null,null,null,null,null,null,null,null," "]
[null,null,null,null,null,null,null,null,null,null,null,null," "]
[null,null,null,null,null,null,null,null,null,null,null,null," "]
[null,null,null,null,null,null,null,null,null,null,null,null," "]
[null,null,null,null,null,null,null,null,null,null,null,null," "]
[null,null,null,null,null,null,null,null,null,null,null,null," "]
[null,null,null,null,null,null,null,null,null,null,null,null," "]
[null,null,null,null,null,null,null,null,null,null,null,null," "]
[null,null,null,null,null,null,null,null,null,null,null,null," "]
[null,null,null,null,null,null,null,null,null,null,null,null," "]
[null,null,null,null,null,null,null,null,null,null,null,null," "]
[null,null,null,null,null,null,null,null,null,null,null,null," "]
[null,null,null,null,null,null,null,null,null,null,null,null," "]
[null,null,null,null,null,null,null,null,null,null,null,null," "]
[null,null,null,null,null,null,null,null,null,null,null,null," "]
[null,null,null,null,null,null,null,null,null,null,null,null," "]
[null,null,null,null,null,null,null,null,null,null,null,null," "]
[null,null,null,null,null,null,null,null,null,null,null,null," "]
[null,null,null,null,null,null,null,null,null,null,null,null," "]
[null,null,null,null,null,null,null,null,null,null,null,null," "]
[null,null,null,null,null,null,null,null,null,null,null,null," "]
[null,null,null,null,null,null,null,null,null,null,null,null," "]
[null,null,null,null,null,null,null,null,null,null,null,null," "]
[null,null,null,null,null,null,null,null,null,null,null,null," "]
[null,null,null,null,null,null,null,null,null,null,null,null," "]
[null,null,null,null,null,null,null,null,null,null,null,null," "]
[null,null,null,null,null,null,null,null,null,null,null,null," "]
[null,null,null,null,null,null,null,null,null,null,null,null," "]
[null,null,null,null,null,null,null,null,null,null,null,null," "]
[null,null,null,null,null,null,null,null,null,null,null,null," "]
[null,null,null,null,null,null,null,null,null,null,null,null," "]
[null,null,null,null,null,null,null,null,null,null,null,null," "]
[null,null,null,null,null,null,null,null,null,null,null,null," "]
[null,null,null,null,null,null,null,null,null,null,null,null," "]
[null,null,null,null,null,null,null,null,null,null,null,null," "]
[null,null,null,null,null,null,null,null,null,null,null,null," "]
[null,null,null,null,null,null,null,null,null,null,null,null," "]
[null,null,null,null,null,null,null,null,null,null,null,null," "]
[null,null,null,null,null,null,null,null,null,null,null,null," "]
[null,null,null,null,null,null,null,null,null,null,null,null," "]
[null,null,null,null,null,null,null,null,null,null,null,null," "]
[null,null,null,null,null,null,null,null,null,null,null,null," "]
[null,null,null,null,null,null,null,null,null,null,null,null," "]
[null,null,null,null,null,null,null,null,null,null,null,null," "]
[null,null,null,null,null,null,null,null,null,null,null,null," "]
[null,null,null,null,null,null,null,null,null,null,null,null," "]
[null,null,null,null,null,null,null,null,null,null,null,null," "]
[null,null,null,null,null,null,null,null,null,null,null,null," "]
[null,null,null,null,null,null,null,null,null,null,null,null," "]
[null,null,null,null,null,null,null,null,null,null,null,null," "]
[null,null,null,null,null,null,null,null,null,null,null,null," "]
[null,null,null,null,null,null,null,null,null,null,null,null," "]
[null,null,null,null,null,null,null,null,null,null,null,null," "]
[null,null,null,null,null,null,null,null,null,null,null,null," "]
[null,null,null,null,null,null,null,null,null,null,null,null," "]
[null,null,null,null,null,null,null,null,null,null,null,null," "]
[null,null,null,null,null,null,null,null,null,null,null,null," "]
[null,null,null,null,null,null,null,null,null,null,null,null," "]
[null,null,null,null,null,null,null,null,null,null,null,null," "]
[null,null,null,null,null,null,null,null,null,null,null,null," "]
[null,null,null,null,null,null,null,null,null,null,null,null," "]
[null,null,null,null,null,null,null,null,null,null,null,null," "]
[null,null,null,null,null,null,null,null,null,null,null,null," "]
[null,null,null,null,null,null,null,null,null,null,null,null," "]
[null,null,null,null,null,null,null,null,null,null,null,null," "]
[null,null,null,null,null,null,null,null,null,null,null,null," "]
[null,null,null,null,null,null,null,null,null,null,null,null," "]
[null,null,null,null,null,null,null,null,null,null,null,null," "]
[null,null,null,null,null,null,null,null,null,null,null,null," "]
[null,null,null,null,null,null,null,null,null,null,null,null," "]
[null,null,null,null,null,null,null,null,null,null,null,null," "]
[null,null,null,null,null,null,null,null,null,null,null,null," "]
[null,null,null,null,null,null,null,null,null,null,null,null," "]
[null,null,null,null,null,null,null,null,null,null,null,null," "]
[null,null,null,null,null,null,null,null,null,null,null,null," "]
[null,null,null,null,null,null,null,null,null,null,null,null," "]
[null,null,null,null,null,null,null,null,null,null,null,null," "]
[null,null,null,null,null,null,null,null,null,null,null,null," "]
[null,null,null,null,null,null,null,null,null,null,null,null," "]
[null,null,null,null,null,null,null,null,null,null,null,null," "]
[null,null,null,null,null,null,null,null,null,null,null,null," "]
[null,null,null,null,null,null,null,null,null,null,null,null," "]
[null,null,null,null,null,null,null,null,null,null,null,null," "]
[null,null,null,null,null,null,null,null,null,null,null,null," "]
[null,null,null,null,null,null,null,null,null,null,null,null," "]
[null,null,null,null,null,null,null,null,null,null,null,null," "]
[null,null,null,null,null,null,null,null,null,null,null,null," "]
[null,null,null,null,null,null,null,null,null,null,null,null," "]
[null,null,null,null,null,null,null,null,null,null,null,null," "]
[null,null,null,null,null,null,null,null,null,null,null,null," "]
[null,null,null,null,null,null,null,null,null,null,null,null," "]
[null,null,null,null,null,null,null,null,null,null,null,null," "]
[null,null,null,null,null,null,null,null,null,null,null,null," "]
[null,null,null,null,null,null,null,null,null,null,null,null," "]
[null,null,null,null,null,null,null,null,null,null,null,null," "]
[null,null,null,null,null,null,null,null,null,null,null,null," "]
[null,null,null,null,null,null,null,null,null,null,null,null," "]
[null,null,null,null,null,null,null,null,null,null,null,null," "]
[null,null,null,null,null,null,null,null,null,null,null,null," "]
[null,null,null,null,null,null,null,null,null,null,null,null," "]
[null,null,null,null,null,null,null,null,null,null,null,null," "]
[null,null,null,null,null,null,null,null,null,null,null,null," "]
[null,null,null,null,null,null,null,null,null,null,null,null," "]
[null,null,null,null,null,null,null,null,null,null,null,null," "]
[null,null,null,null,null,null,null,null,null,null,null,null," "]
[null,null,null,null,null,null,null,null,null,null,null,null," "]
[null,null,null,null,null,null,null,null,null,null,null,null," "]
[null,null,null,null,null,null,null,null,null,null,null,null," "]
[null,null,null,null,null,null,null,null,null,null,null,null," "]
[null,null,null,null,null,null,null,null,null,null,null,null," "]
[null,null,null,null,null,null,null,null,null,null,null,null," "]
[null,null,null,null,null,null,null,null,null,null,null,null," "]
[null,null,null,null,null,null,null,null,null,null,null,null," "]
[null,null,null,null,null,null,null,null,null,null,null,null," "]
[null,null,null,null,null,null,null,null,null,null,null,null," "]
[null,null,null,null,null,null,null,null,null,null,null,null," "]
[null,null,null,null,null,null,null,null,null,null,null,null," "]
[null,null,null,null,null,null,null,null,null,null,null,null," "]
[null,null,null,null,null,null,null,null,null,null,null,null," "]
[null,null,null,null,null,null,null,null,null,null,null,null," "]
[null,null,null,null,null,null,null,null,null,null,null,null," "]
[null,null,null,null,null,null,null,null,null,null,null,null," "]
[null,null,null,null,null,null,null,null,null,null,null,null," "]
[null,null,null,null,null,null,null,null,null,null,null,null," "]
[null,null,null,null,null,null,null,null,null,null,null,null," "]
[null,null,null,null,null,null,null,null,null,null,null,null," "]
[null,null,null,null,null,null,null,null,null,null,null,null," "]
[null,null,null,null,null,null,null,null,null,null,null,null," "]
[null,null,null,null,null,null,null,null,null,null,null,null," "]
[null,null,null,null,null,null,null,null,null,null,null,null," "]
[null,null,null,null,null,null,null,null,null,null,null,null," "]
[null,null,null,null,null,null,null,null,null,null,null,null," "]
[null,null,null,null,null,null,null,null,null,null,null,null," "]
[null,null,null,null,null,null,null,null,null,null,null,null," "]
[null,null,null,null,null,null,null,null,null,null,null,null," "]
[null,null,null,null,null,null,null,null,null,null,null,null," "]
[null,null,null,null,null,null,null,null,null,null,null,null," "]
[null,null,null,null,null,null,null,null,null,null,null,null," "]
[null,null,null,null,null,null,null,null,null,null,null,null," "]
[null,null,null,null,null,null,null,null,null,null,null,null," "]
[null,null,null,null,null,null,null,null,null,null,null,null," "]
[null,null,null,null,null,null,null,null,null,null,null,null," "]
[null,null,null,null,null,null,null,null,null,null,null,null," "]
[null,null,null,null,null,null,null,null,null,null,null,null," "]
[null,null,null,null,null,null,null,null,null,null,null,null," "]
[null,null,null,null,null,null,null,null,null,null,null,null," "]
[null,null,null,null,null,null,null,null,null,null,null,null," "]
[null,null,null,null,null,null,null,null,null,null,null,null," "]
[null,null,null,null,null,null,null,null,null,null,null,null," "]
[null,null,null,null,null,null,null,null,null,null,null,null," "]
[null,null,null,null,null,null,null,null,null,null,null,null," "]
[null,null,null,null,null,null,null,null,null,null,null,null," "]
[null,null,null,null,null,null,null,null,null,null,null,null," "]
[null,null,null,null,null,null,null,null,null,null,null,null," "]
[null,null,null,null,null,null,null,null,null,null,null,null," "]
[null,null,null,null,null,null,null,null,null,null,null,null," "]
[null,null,null,null,null,null,null,null,null,null,null,null," "]
[null,null,null,null,null,null,null,null,null,null,null,null," "]
[null,null,null,null,null,null,null,null,null,null,null,null," "]
[null,null,null,null,null,null,null,null,null,null,null,null," "]
[null,null,null,null,null,null,null,null,null,null,null,null," "]
[null,null,null,null,null,null,null,null,null,null,null,null," "]
[null,null,null,null,null,null,null,null,null,null,null,null," "]
[null,null,null,null,null,null,null,null,null,null,null,null," "]
[null,null,null,null,null,null,null,null,null,null,null,null," "]
[null,null,null,null,null,null,null,null,null,null,null,null," "]
[null,null,null,null,null,null,null,null,null,null,null,null," "]
[null,null,null,null,null,null,null,null,null,null,null,null," "]
[null,null,null,null,null,null,null,null,null,null,null,null," "]
[null,null,null,null,null,null,null,null,null,null,null,null," "]
[null,null,null,null,null,null,null,null,null,null,null,null," "]
[null,null,null,null,null,null,null,null,null,null,null,null," "]
[null,null,null,null,null,null,null,null,null,null,null,null," "]
[null,null,null,null,null,null,null,null,null,null,null,null," "]
[null,null,null,null,null,null,null,null,null,null,null,null," "]
[null,null,null,null,null,null,null,null,null,null,null,null," "]
[null,null,null,null,null,null,null,null,null,null,null,null," "]
[null,null,null,null,null,null,null,null,null,null,null,null," "]
[null,null,null,null,null,null,null,null,null,null,null,null," "]
[null,null,null,null,null,null,null,null,null,null,null,null," "]
[null,null,null,null,null,null,null,null,null,null,null,null," "]
[null,null,null,null,null,null,null,null,null,null,null,null," "]
[null,null,null,null,null,null,null,null,null,null,null,null," "]
[null,null,null,null,null,null,null,null,null,null,null,null," "]
[null,null,null,null,null,null,null,null,null,null,null,null," "]
[null,null,null,null,null,null,null,null,null,null,null,null," "]
[]
[]
[]
[]
[]
[]
[]
[]
[]
[]
[]
[]
[]
[]
[]
[]
[]
[]
[]
[]
[]
[]
[]
[]
[]
[null,"499行まで非表示"]
[]
[]
[null,null,"その他除き"]
[null,null,"省エネ基準",null,{"$f":"IF(AD182=0,\"\",AD182)","v":""}]
[null,null,"再エネ（自家消費分）",null,{"$f":"IF(OR(H45=\"━\",AD180=0),\"\",AD180)","v":""}]
[null,null,"再エネ（自家＋売電分）",null,{"$f":"IF(OR(K45=\"━\",AD186=0),\"\",AD186)","v":""}]
[null,null,"基準一次エネルギー",null,{"$f":"IF(AD179=0,\"\",AD179)","v":""}]